Workbook

Sheet Information
A8: Fachverband Hotellerie
A12: Fragenkatalog für Mystery Guest-Check
A13: (Information)
A25: Arbeitsunterlage, 13.10.2010 | B25: Arbeitsunterlage 2020-2025
B36: Die vorliegende Arbeitsunterlage ermöglicht Ihnen - unabhängig von Konzept und Positionierung des zu prüfenden Betriebes - eine Auswahl des passenden Fragenkataloges je nach Angebot.
B48: Rückfragehinweis:
B49: Mag. Maria Schreiner/ Mag. Maria Dinböck
B50: Fachverband Hotellerie
B51: Wiedner Hauptstraße 63
B52: 1045 Wien
B53: T: 0590900/3554 F: 0590900/3568
B54: E: hotels@wko.at
B57: Wien, 15.12.2020

Sheet Varianten
A8: Fachverband Hotellerie
A12: Fragenkatalog für Mystery Guest-Check
A13: (Varianten)
A25: Arbeitsunterlage 2020-2025
A36: Variante | B36: Anzahl Kriterien | C36: Faktor
A37: ohne Zusatzangebot | B37: 379 | C37: =100/B37 -> 0.2638522427
A39: inkl. Spa | B39: 403 | C39: =100/B39 -> 0.2481389578
A40: inkl. Freizeit oder Tagung | B40: 402 | C40: =100/B40 -> 0.2487562189
A41: inkl. Spa + 1 Modul | B41: 426 | C41: =100/B41 -> 0.234741784
A42: inkl. Freizeit und Tagung | B42: 425 | C42: =100/B42 -> 0.2352941176
A43: inkl. 3 Modulen/gesamt | B43: 449 | C43: =100/B43 -> 0.2227171492
A58: Rückfragehinweis:
A59: Mag. Maria Schreiner | Mag. Maria Dinböck
A60: Fachverband Hotellerie
A61: Wiedner Hauptstraße 63
A62: 1045 Wien
A63: T: 0590900/3554 F: 0590900/3568
A64: E: hotels@wko.at
A67: Wien, 15.12.2020

Sheet gesamt
C7: Fachverband Hotellerie
C11: Fragenkatalog für Mystery Guest-Check
C18: Arbeitsunterlage 2020-2025
C24: Dies ist die Auflistung der erforderlichen Prüfkriterien für Firmen, die einen Mystery-Test im Rahmen der Österreichischen Hotelklassifizierung durchführen. Über die Listung einer Firma entscheidet die Lenkungskommission bzw. der Fachverband Hotellerie nach Prüfung der Voraussetzungen.
C26: positiv erfülltes Kriterium | D26: 1
C27: negativ erfülltes Kriterium | D27: 0
C30: 1. Web-Auftritt
E31: Kommentar
A32: 1 | B32: 1 | C32: Nachvollziehbare Webadresse | D32: 1
A33: 2 | B33: 2 | C33: Funktionieren alle Links | D33: 1
A34: 3 | B34: 3 | C34: Übersichtlichkeit | D34: 1
A35: 4 | B35: 4 | C35: Such-Funktion | D35: 1
A36: 5 | B36: 5 | C36: Integriertes Gästefeedback | D36: 1
A37: 6 | B37: 6 | C37: Tipp-, Rechtschreib- und Grammatikfehler | D37: 1
A38: 7 | B38: 7 | C38: Aussagekräftiger, realistischer Auftritt mit Hotelbildern | D38: 1
A39: 8 | B39: 8 | C39: Aktualität | D39: 1
A40: 9 | B40: 9 | C40: Impressum | D40: 1
A41: 10 | B41: 10 | C41: Übersetzung in mindestens eine Fremdsprache (ab 3* verpflichtend) | D41: 1
A42: 11 | B42: 11 | C42: Kontaktangabe (Email, Telefon, etc.) | D42: 1
A43: 12 | B43: 12 | C43: Online-Buchbarkeit auf eigener Website | D43: 1
A44: 13 | B44: 13 | C44: Anfahrtsplan | D44: 1
A45: 14 | B45: 14 | C45: Allgemeinen Geschäftsbedingungen oder Stornobedingungen vorhanden | D45: 1
A46: 15 | B46: 15 | C46: Mobile Version der Website oder mobile Applikation | D46: 1
C47: Anzahl der erfüllten Kriterien | D47: =SUM(D32:D46) -> 15
C48: Multiplikation der Anzahl der erfüllten Kriterien mit | D48: =D767 -> 0.2227171492
C49: Maximale Summe | D49: =D48*B46 -> 3.340757238
C50: Erreichte Punktanzahl | D50: =D47*D48 -> 3.340757238
C52: Kommentar
C54: 2. E-Mail und Post
C56: Beantwortung Ihrer E-Mail Anfrage, | E56: Kommentar
A57: 16 | B57: 1 | C57: Innerhalb … Stunden ab Anfrage (3*S - 12; 4*S - 8; 5*/5*S - 4) | D57: 1
A58: 17 | B58: 2 | C58: Qualität (Schreibstil, Wortwahl, korrekte Anrede, Rechtsschreibung) | D58: 1
A59: 18 | B59: 3 | C59: Informationsgehalt (z.B. Zusatzangebote) | D59: 1
A60: 19 | B60: 4 | C60: Individuelle Bearbeitung | D60: 1
A61: 20 | B61: 5 | C61: Bei Angebot: Angaben zu Stornobedingungen | D61: 1
C65: Reservierungs-Bestätigung (E-Mail, Fax) als Antwort auf Ihre Buchung | E65: Kommentar
A66: 21 | B66: 6 | C66: Innerhalb … Stunden ab Reservierung (3*S - 24; 4*S - 12; 5*/5*S - 8) | D66: 1
A67: 22 | B67: 7 | C67: Qualität (Schreibstil, Wortwahl, korrekte Anrede, Rechtsschreibung) | D67: 1
A68: 23 | B68: 8 | C68: Informationsgehalt (u.a. Aktuelle Anfahrtsbeschreibung) | D68: 1
A69: 24 | B69: 9 | C69: Angaben zu Stornobedingungen | D69: 1
C73: Unterlagen per Post | E73: Kommentar
A74: 25 | B74: 10 | C74: Zusendung innerhalb von 3 Werktagen | D74: 1
A75: 26 | B75: 11 | C75: Begleitschreiben | D75: 1
A76: 27 | B76: 12 | C76: Qualität (Schreibstil, Wortwahl, korrekte Anrede, Rechtsschreibung) | D76: 1
A77: 28 | B77: 13 | C77: Informationsgehalt (z.B. Zusatzangebote) | D77: 1
A78: 29 | B78: 14 | C78: Individuelle Bearbeitung | D78: 1
A79: 30 | B79: 15 | C79: Qualitativ entsprechende Unterlagen, Prospekte | D79: 1
C80: Anzahl der erfüllten Kriterien | D80: =SUM(D57:D79) -> 15
C81: Multiplikation der Anzahl der erfüllten Kriterien mit | D81: =D767 -> 0.2227171492
C82: Maximale Summe | D82: =D81*B79 -> 3.340757238
C83: Erreichte Punktanzahl | D83: =D81*D80 -> 3.340757238
C85: Kommentar
C88: 3. Telefon
E89: Kommentar
A90: 31 | B90: 1 | C90: Wartezeit (3*S - 1 Min; 4*S - 30 Sek; 5*/5*S - 15 Sek) | D90: 1
A91: 32 | B91: 2 | C91: Während der Wartezeit Text- bzw. Tonschleife | D91: 1
A92: 33 | B92: 3 | C92: Herzlichkeit | D92: 1
A93: 34 | B93: 4 | C93: Klare deutliche Stimme und Aussprache | D93: 1
A94: 35 | B94: 5 | C94: Mit Namen angesprochen | D94: 1
A95: 36 | B95: 6 | C95: Vollständige Datenaufnahme (z.B. Adresse, Tel, Email-Nachfrage) | D95: 1
A96: 37 | B96: 7 | C96: Fachliche Kompetenz | D96: 1
A97: 38 | B97: 8 | C97: An- und Abreisedatum wiederholt und bestätigt | D97: 1
A98: 39 | B98: 9 | C98: Informationen über Kategorien | D98: 1
A99: 40 | B99: 10 | C99: Informationen über Preise | D99: 1
A100: 41 | B100: 11 | C100: Informationen über Zahlungsmodalitäten | D100: 1
A101: 42 | B101: 12 | C101: Informationen über Leistungen | D101: 1
A102: 43 | B102: 13 | C102: Informationen über Check-in-Zeiten | D102: 1
A103: 44 | B103: 14 | C103: Informationen über Zusatzangebote | D103: 1
A104: 45 | B104: 15 | C104: Anfahrts-, Wegbeschreibung | D104: 1
A105: 46 | B105: 16 | C105: Angebot zur vorläufigen Einbuchung | D105: 1
A106: 47 | B106: 17 | C106: Hinweis auf Stornobedingungen | D106: 1
A107: 48 | B107: 18 | C107: Freundliche Verabschiedung und Dank | D107: 1
C108: Anzahl der erfüllten Kriterien | D108: =SUM(D90:D107) -> 18
C109: Multiplikation der Anzahl der erfüllten Kriterien mit | D109: =D767 -> 0.2227171492
C110: Maximale Summe | D110: =D109*B107 -> 4.008908686
C111: Erreichte Punktanzahl | D111: =D109*D108 -> 4.008908686
C113: Kommentar
C116: 4. Anreise und Außenanlage
E117: Kommentar
A118: 49 | B118: 1 | C118: Auffindbarkeit (z.B. Beschilderung im Ort) | D118: 1
A119: 50 | B119: 2 | C119: Zufahrtsmöglichkeit | D119: 1
A120: 51 | B120: 3 | C120: Parkplätze | D120: 1
A121: 52 | B121: 4 | C121: Garagenplätze | D121: 1
A122: 53 | B122: 5 | C122: Beleuchtung | D122: 1
A123: 54 | B123: 6 | C123: Gepäckservice | D123: 1
A124: 55 | B124: 7 | C124: Einfache Orientierung | D124: 1
A125: 56 | B125: 8 | C125: Sauberkeit und Zustand | D125: 1
A126: 57 | B126: 9 | C126: Parkservice (z.B. Doorman, Wagenmeiser) | D126: 1
C127: Anzahl der erfüllten Kriterien | D127: =SUM(D118:D126) -> 9
C128: Multiplikation der Anzahl der erfüllten Kriterien mit | D128: =D767 -> 0.2227171492
C129: Maximale Summe | D129: =D128*B126 -> 2.004454343
C130: Erreichte Punktanzahl | D130: =D128*D127 -> 2.004454343
C132: Kommentar
C135: 5. Check-In
C137: Eingang | E137: Kommentar
A138: 58 | B138: 1 | C138: Raumklima (Geruch) | D138: 1
A139: 59 | B139: 2 | C139: Raumtemperatur | D139: 1
A140: 60 | B140: 3 | C140: Beleuchtung ausreichend | D140: 1
A141: 61 | B141: 4 | C141: Ambiente/Atmosphäre | D141: 1
A142: 62 | B142: 5 | C142: Entsprechend qualitatives Mobiliar | D142: 1
A143: 63 | B143: 6 | C143: Sauberkeit und Ordnung | D143: 1
A144: 64 | B144: 7 | C144: Stimmige Dekorationen | D144: 1
A145: 65 | B145: 8 | C145: Großzügiger Sitzbereich für Gäste | D145: 1
A146: 66 | B146: 9 | C146: Erscheinungsbild Check-In-Bereich (Front Office - Sauberkeit, Ordnung) | D146: 1
C150: Front Office Mitarbeiter | E150: Kommentar
A151: 67 | B151: 10 | C151: Anwesenheit | D151: 1
A152: 68 | B152: 11 | C152: Begrüßung (z.B. Welcome Drink) | D152: 1
A153: 69 | B153: 12 | C153: Herzlichkeit, Freundlichkeit | D153: 1
A154: 70 | B154: 13 | C154: Erscheinungsbild Mitarbeiter (z.B. Uniform, Namensschild) | D154: 1
A155: 71 | B155: 14 | C155: Fachkompetenz | D155: 1
A156: 72 | B156: 15 | C156: Fremdsprachenkenntnisse | D156: 1
A157: 73 | B157: 16 | C157: Aufmerksamkeit | D157: 1
A158: 74 | B158: 17 | C158: Sorgfältigkeit | D158: 1
A159: 75 | B159: 18 | C159: Effizienz (Schnelligkeit, Flexibilität) | D159: 1
A160: 76 | B160: 19 | C160: Hilfsbereitschaft | D160: 1
A161: 77 | B161: 20 | C161: Klare, gut verständliche Aussprache | D161: 1
A162: 78 | B162: 21 | C162: Gast mit Namen angesprochen | D162: 1
A163: 79 | B163: 22 | C163: Vorbereiteter Meldezettel | D163: 1
A164: 80 | B164: 23 | C164: Gepäcksservice angeboten | D164: 1
A165: 81 | B165: 24 | C165: Begleitung auf das Zimmer angeboten | D165: 1
A166: 82 | B166: 25 | C166: Allgemeine Haus-Informationen angeboten bzw. gegeben | D166: 1
A167: 83 | B167: 26 | C167: Angenehmen Aufenthalt gewünscht | D167: 1
C171: Begleitung zum Zimmer | E171: Kommentar
A172: 84 | B172: 27 | C172: Erscheinungsbild des Mitarbeiters | D172: 1
A173: 85 | B173: 28 | C173: Freundlichkeit, Konversation | D173: 1
C177: Rooming | E177: Kommentar
A178: 86 | B178: 29 | C178: Hinweis auf Hauptschalter (für Strom im Zimmer) | D178: 1
A179: 87 | B179: 30 | C179: Hinweis auf Heizung oder Klimaanlage | D179: 1
A180: 88 | B180: 31 | C180: Kommunikationsgerät (z.B. Telefon) (schriftliche Infos ausreichend) | D180: 1
A181: 89 | B181: 32 | C181: Telefonverzeichnis bzw. -nummern (für Zimmerservice) - schriftliche Infos ausreichend | D181: 1
A182: 90 | B182: 33 | C182: Minibar oder Maxibar (bis 4*) (schriftliche Infos ausreichend) | D182: 1
A183: 91 | B183: 34 | C183: Safe (schriftliche Infos ausreichend) | D183: 1
A184: 92 | B184: 35 | C184: Wäsche-Service (schriftliche Infos ausreichend) | D184: 1
A185: 93 | B185: 36 | C185: Bügel-Service (schriftliche Infos ausreichend) | D185: 1
A186: 94 | B186: 37 | C186: Öffnungszeiten Restaurant, Bar (schriftliche Infos ausreichend) | D186: 1
A187: 95 | B187: 38 | C187: Zeitangabe Frühstück (schriftliche Infos ausreichend) | D187: 1
A188: 96 | B188: 39 | C188: Rezeption 24 Std. erreichbar und … Std. besetzt (3*S - 10; 4*S - 16; 5*/5*S - 24) | D188: 1
C189: Anzahl der erfüllten Kriterien | D189: =SUM(D138:D188) -> 39
C190: Multiplikation der Anzahl der erfüllten Kriterien mit | D190: =D767 -> 0.2227171492
C191: Maximale Summe | D191: =D190*B188 -> 8.68596882
C192: Erreichte Punktanzahl | D192: =D190*D189 -> 8.68596882
C194: Kommentar
C197: 6. Zimmer
C199: Erster Eindruck und Allgemeiner Charakter | E199: Kommentar
A200: 97 | B200: 1 | C200: Raumklima (Frischer Geruch) | D200: 1
A201: 98 | B201: 2 | C201: Angenehme Temperatur | D201: 1
A202: 99 | B202: 3 | C202: Atmosphäre (Wohlfühlcharakter) | D202: 1
A203: 100 | B203: 4 | C203: Geräuschpegel (Ruhe) | D203: 1
A204: 101 | B204: 5 | C204: Entsprechendes Mobiliar | D204: 1
A205: 102 | B205: 6 | C205: Sauberkeit | D205: 1
A206: 103 | B206: 7 | C206: Willkommensbrief/-karte | D206: 1
A207: 104 | B207: 8 | C207: Willkommensgruß (z.B. Blumen, Obst, Konfekt…) | D207: 1
A208: 105 | B208: 9 | C208: Türschloss in einwandfreiem Zustand | D208: 1
C212: Das Bett | E212: Kommentar
A213: 106 | B213: 10 | C213: Dem Hotelstandard angemessen | D213: 1
A214: 107 | B214: 11 | C214: Qualität der Bettbezüge angemessen | D214: 1
A215: 108 | B215: 12 | C215: Matratze/Liegekomfort | D215: 1
A216: 109 | B216: 13 | C216: Bettdecken der Jahreszeit angepasst | D216: 1
A217: 110 | B217: 14 | C217: Zusatzkopfkissen auf Wunsch (kein Zierkissen) | D217: 1
A218: 111 | B218: 15 | C218: Zusatzdecke auf Wunsch | D218: 1
A219: 112 | B219: 16 | C219: Zwei Kopfkissen pro Gast (kein Zierkissen) | D219: 1
A220: 113 | B220: 17 | C220: Auswahl verschiedener Kopfkissen | D220: 1
A221: 114 | B221: 18 | C221: Allergikerfreundliche Bettwäsche und Einlagen auf Wunsch | D221: 1
C222: Einrichtung | E222: Kommentar
A223: 115 | B223: 19 | C223: Qualität und Zustand der Vorhänge | D223: 1
A224: 116 | B224: 20 | C224: Verdunkelung mit Vorhängen möglich | D224: 1
A225: 117 | B225: 21 | C225: Schalter, Steckdosen leicht erreichbar | D225: 1
A226: 118 | B226: 22 | C226: Einwandfreie Wände | D226: 1
A227: 119 | B227: 23 | C227: Einwandfreie Beleuchtung | D227: 1
A228: 120 | B228: 24 | C228: Einwandfreie Einrichtung (Mobiliar) | D228: 1
A229: 121 | B229: 25 | C229: Angemessene Anzahl einheitlicher Kleiderbügel (kein Draht) bis inkl. 3*; verschiedene Bügelarten 4*, 5*; | D229: 1
A230: 122 | B230: 26 | C230: Geräumige Ablagemöglichkeiten | D230: 1
A231: 123 | B231: 27 | C231: Geräumige Hängevorrichtung in den Kästen | D231: 1
C235: Ausstattung und Services | E235: Kommentar
A236: 124 | B236: 28 | C236: funktionstüchtige Audio- / Multimedia Unterhaltung (z.B. Radio, Streaming-Dienste) | D236: 1
A237: 125 | B237: 29 | C237: TV-Programme gut eingestellt | D237: 1
A238: 126 | B238: 30 | C238: Schreibmappe mit Schreibgeräten | D238: 1
A239: 127 | B239: 31 | C239: Kommunikationsgerät mit interner und externer Telefonfunktion | D239: 1
A240: 128 | B240: 32 | C240: Bedienungsanleitung für das Kommunikationsgerät (ab 4* zweisprachig verpflichtend) | D240: 1
A241: 129 | B241: 33 | C241: Schreibblock und einen Bleistift neben Telefon | D241: 1
A242: 130 | B242: 34 | C242: WLAN Internetzugang im öffentlichen Bereich und auf den Zimmern | D242: 1
A243: 131 | B243: 35 | C243: Private und sichere Druckmöglichkeit auf Wunsch (ab 4* verpflichtend) | D243: 1
A244: 132 | B244: 36 | C244: Internet-Endgerät auf dem Zimmer auf Wunsch (ab 5* verpflichtend) | D244: 1
A245: 133 | B245: 37 | C245: Einwandfreie Funktionalität aller elektrischen Einrichtungen (z.B. Licht, TV, Fön) | D245: 1
A246: 134 | B246: 38 | C246: Safe im Zimmer (ab 4* verpflichtend) | D246: 1
A247: 135 | B247: 39 | C247: Weckservice (oder Weckfunktion über das TV-Gerät, Telefon) | D247: 1
A248: 136 | B248: 40 | C248: Alternatives Weckservice (Verlässlichkeit, Freundlichkeit) | D248: 1
A249: 137 | B249: 41 | C249: "Bitte nicht stören/Bitte aufräumen" Angabemöglichkeit vorhanden | D249: 1
A250: 138 | B250: 42 | C250: Aktualität des Infomaterials (gedruckt oder digital) | D250: 1
A251: 139 | B251: 43 | C251: Sicherheitsbestimmungen (z.B. Brandschutz, Fluchtwege) sichtbar | D251: 1
A252: 140 | B252: 44 | C252: Zimmerpreise aufgehängt oder in Infomappe | D252: 1
A253: 141 | B253: 45 | C253: Aktuelles Medienangebot (gedruckt oder digital) | D253: 1
A254: 142 | B254: 46 | C254: Zweisprachiger Serviceleitfaden (gedruckt oder digital) | D254: 1
A255: 143 | B255: 47 | C255: Ladegeräte/Adapter auf Wunsch (z.B. für elektr. Geräte wie Handys, Tabletts...) ab 3* verpflichtend | D255: 1
A256: 144 | B256: 48 | C256: Internationaler Steckdosenadapter auf Wunsch (ab 4* verpflichtend) | D256: 1
A257: 145 | B257: 49 | C257: Mindestens zwei Trinkgläser auf Untersetzer (z.B. Serviette) | D257: 1
A258: 146 | B258: 50 | C258: Getränke im Roomservice (4* - 16h; 5* - 24h) | D258: 1
A259: 147 | B259: 51 | C259: Speisen im Roomservice (4* - 16h; 5* - 24h) | D259: 1
A260: 148 | B260: 52 | C260: Frühstückskarte im Roomservice | D260: 1
A261: 149 | B261: 53 | C261: Wäschereiservice | D261: 1
... 417 more rows

Sheet SPA + Freizeit
C7: Fachverband Hotellerie
C11: Fragenkatalog für Mystery Guest-Check
C18: Arbeitsunterlage 2020-2025
C24: Dies ist die Auflistung der erforderlichen Prüfkriterien für Firmen, die einen Mystery-Test im Rahmen der Österreichischen Hotelklassifizierung durchführen. Über die Listung einer Firma entscheidet die Lenkungskommission bzw. der Fachverband Hotellerie nach Prüfung der Voraussetzungen.
C26: positiv erfülltes Kriterium | D26: 1
C27: negativ erfülltes Kriterium | D27: 0
C30: 1. Web-Auftritt
E31: Kommentar
A32: 1 | B32: 1 | C32: Nachvollziehbare Webadresse | D32: 1
A33: 2 | B33: 2 | C33: Funktionieren alle Links | D33: 1
A34: 3 | B34: 3 | C34: Übersichtlichkeit | D34: 1
A35: 4 | B35: 4 | C35: Such-Funktion | D35: 1
A36: 5 | B36: 5 | C36: Integriertes Gästefeedback | D36: 1
A37: 6 | B37: 6 | C37: Tipp-, Rechtschreib- und Grammatikfehler | D37: 1
A38: 7 | B38: 7 | C38: Aussagekräftiger, realistischer Auftritt mit Hotelbildern | D38: 1
A39: 8 | B39: 8 | C39: Aktualität | D39: 1
A40: 9 | B40: 9 | C40: Impressum | D40: 1
A41: 10 | B41: 10 | C41: Übersetzung in mindestens eine Fremdsprache (ab 3* verpflichtend) | D41: 1
A42: 11 | B42: 11 | C42: Kontaktangabe (Email, Telefon, etc.) | D42: 1
A43: 12 | B43: 12 | C43: Online-Buchbarkeit auf eigener Website | D43: 1
A44: 13 | B44: 13 | C44: Anfahrtsplan | D44: 1
A45: 14 | B45: 14 | C45: Allgemeinen Geschäftsbedingungen oder Stornobedingungen vorhanden | D45: 1
A46: 15 | B46: 15 | C46: Mobile Version der Website oder mobile Applikation | D46: 1
C47: Anzahl der erfüllten Kriterien | D47: =SUM(D32:D46) -> 15
C48: Multiplikation der Anzahl der erfüllten Kriterien mit | D48: =D732 -> 0.234741784
C49: Maximale Summe | D49: =D48*B46 -> 3.521126761
C50: Erreichte Punktanzahl | D50: =D47*D48 -> 3.521126761
C52: Kommentar
C54: 2. E-Mail und Post
C56: Beantwortung Ihrer E-Mail Anfrage, | E56: Kommentar
A57: 16 | B57: 1 | C57: Innerhalb … Stunden ab Anfrage (3*S - 12; 4*S - 8; 5*/5*S - 4) | D57: 1
A58: 17 | B58: 2 | C58: Qualität (Schreibstil, Wortwahl, korrekte Anrede, Rechtsschreibung) | D58: 1
A59: 18 | B59: 3 | C59: Informationsgehalt (z.B. Zusatzangebote) | D59: 1
A60: 19 | B60: 4 | C60: Individuelle Bearbeitung | D60: 1
A61: 20 | B61: 5 | C61: Bei Angebot: Angaben zu Stornobedingungen | D61: 1
C65: Reservierungs-Bestätigung (E-Mail, Fax) als Antwort auf Ihre Buchung | E65: Kommentar
A66: 21 | B66: 6 | C66: Innerhalb … Stunden ab Reservierung (3*S - 24; 4*S - 12; 5*/5*S - 8) | D66: 1
A67: 22 | B67: 7 | C67: Qualität (Schreibstil, Wortwahl, korrekte Anrede, Rechtsschreibung) | D67: 1
A68: 23 | B68: 8 | C68: Informationsgehalt (u.a. Aktuelle Anfahrtsbeschreibung) | D68: 1
A69: 24 | B69: 9 | C69: Angaben zu Stornobedingungen | D69: 1
C73: Unterlagen per Post | E73: Kommentar
A74: 25 | B74: 10 | C74: Zusendung innerhalb von 3 Werktagen | D74: 1
A75: 26 | B75: 11 | C75: Begleitschreiben | D75: 1
A76: 27 | B76: 12 | C76: Qualität (Schreibstil, Wortwahl, korrekte Anrede, Rechtsschreibung) | D76: 1
A77: 28 | B77: 13 | C77: Informationsgehalt (z.B. Zusatzangebote) | D77: 1
A78: 29 | B78: 14 | C78: Individuelle Bearbeitung | D78: 1
A79: 30 | B79: 15 | C79: Qualitativ entsprechende Unterlagen, Prospekte | D79: 1
C80: Anzahl der erfüllten Kriterien | D80: =SUM(D57:D79) -> 15
C81: Multiplikation der Anzahl der erfüllten Kriterien mit | D81: =D732 -> 0.234741784
C82: Maximale Summe | D82: =D81*B79 -> 3.521126761
C83: Erreichte Punktanzahl | D83: =D81*D80 -> 3.521126761
C85: Kommentar
C88: 3. Telefon
E89: Kommentar
A90: 31 | B90: 1 | C90: Wartezeit (3*S - 1 Min; 4*S - 30 Sek; 5*/5*S - 15 Sek) | D90: 1
A91: 32 | B91: 2 | C91: Während der Wartezeit Text- bzw. Tonschleife | D91: 1
A92: 33 | B92: 3 | C92: Herzlichkeit | D92: 1
A93: 34 | B93: 4 | C93: Klare deutliche Stimme und Aussprache | D93: 1
A94: 35 | B94: 5 | C94: Mit Namen angesprochen | D94: 1
A95: 36 | B95: 6 | C95: Vollständige Datenaufnahme (z.B. Adresse, Tel, Email-Nachfrage) | D95: 1
A96: 37 | B96: 7 | C96: Fachliche Kompetenz | D96: 1
A97: 38 | B97: 8 | C97: An- und Abreisedatum wiederholt und bestätigt | D97: 1
A98: 39 | B98: 9 | C98: Informationen über Kategorien | D98: 1
A99: 40 | B99: 10 | C99: Informationen über Preise | D99: 1
A100: 41 | B100: 11 | C100: Informationen über Zahlungsmodalitäten | D100: 1
A101: 42 | B101: 12 | C101: Informationen über Leistungen | D101: 1
A102: 43 | B102: 13 | C102: Informationen über Check-in-Zeiten | D102: 1
A103: 44 | B103: 14 | C103: Informationen über Zusatzangebote | D103: 1
A104: 45 | B104: 15 | C104: Anfahrts-, Wegbeschreibung | D104: 1
A105: 46 | B105: 16 | C105: Angebot zur vorläufigen Einbuchung | D105: 1
A106: 47 | B106: 17 | C106: Hinweis auf Stornobedingungen | D106: 1
A107: 48 | B107: 18 | C107: Freundliche Verabschiedung und Dank | D107: 1
C108: Anzahl der erfüllten Kriterien | D108: =SUM(D90:D107) -> 18
C109: Multiplikation der Anzahl der erfüllten Kriterien mit | D109: =D732 -> 0.234741784
C110: Maximale Summe | D110: =D109*B107 -> 4.225352113
C111: Erreichte Punktanzahl | D111: =D109*D108 -> 4.225352113
C113: Kommentar
C116: 4. Anreise und Außenanlage
E117: Kommentar
A118: 49 | B118: 1 | C118: Auffindbarkeit (z.B. Beschilderung im Ort) | D118: 1
A119: 50 | B119: 2 | C119: Zufahrtsmöglichkeit | D119: 1
A120: 51 | B120: 3 | C120: Parkplätze | D120: 1
A121: 52 | B121: 4 | C121: Garagenplätze | D121: 1
A122: 53 | B122: 5 | C122: Beleuchtung | D122: 1
A123: 54 | B123: 6 | C123: Gepäckservice | D123: 1
A124: 55 | B124: 7 | C124: Einfache Orientierung | D124: 1
A125: 56 | B125: 8 | C125: Sauberkeit und Zustand | D125: 1
A126: 57 | B126: 9 | C126: Parkservice (z.B. Doorman, Wagenmeiser) | D126: 1
C127: Anzahl der erfüllten Kriterien | D127: =SUM(D118:D126) -> 9
C128: Multiplikation der Anzahl der erfüllten Kriterien mit | D128: =D732 -> 0.234741784
C129: Maximale Summe | D129: =D128*B126 -> 2.112676056
C130: Erreichte Punktanzahl | D130: =D128*D127 -> 2.112676056
C132: Kommentar
C135: 5. Check-In
C137: Eingang | E137: Kommentar
A138: 58 | B138: 1 | C138: Raumklima (Geruch) | D138: 1
A139: 59 | B139: 2 | C139: Raumtemperatur | D139: 1
A140: 60 | B140: 3 | C140: Beleuchtung ausreichend | D140: 1
A141: 61 | B141: 4 | C141: Ambiente/Atmosphäre | D141: 1
A142: 62 | B142: 5 | C142: Entsprechend qualitatives Mobiliar | D142: 1
A143: 63 | B143: 6 | C143: Sauberkeit und Ordnung | D143: 1
A144: 64 | B144: 7 | C144: Stimmige Dekorationen | D144: 1
A145: 65 | B145: 8 | C145: Großzügiger Sitzbereich für Gäste | D145: 1
A146: 66 | B146: 9 | C146: Erscheinungsbild Check-In-Bereich (Front Office - Sauberkeit, Ordnung) | D146: 1
C150: Front Office Mitarbeiter | E150: Kommentar
A151: 67 | B151: 10 | C151: Anwesenheit | D151: 1
A152: 68 | B152: 11 | C152: Begrüßung (z.B. Welcome Drink) | D152: 1
A153: 69 | B153: 12 | C153: Herzlichkeit, Freundlichkeit | D153: 1
A154: 70 | B154: 13 | C154: Erscheinungsbild Mitarbeiter (z.B. Uniform, Namensschild) | D154: 1
A155: 71 | B155: 14 | C155: Fachkompetenz | D155: 1
A156: 72 | B156: 15 | C156: Fremdsprachenkenntnisse | D156: 1
A157: 73 | B157: 16 | C157: Aufmerksamkeit | D157: 1
A158: 74 | B158: 17 | C158: Sorgfältigkeit | D158: 1
A159: 75 | B159: 18 | C159: Effizienz (Schnelligkeit, Flexibilität) | D159: 1
A160: 76 | B160: 19 | C160: Hilfsbereitschaft | D160: 1
A161: 77 | B161: 20 | C161: Klare, gut verständliche Aussprache | D161: 1
A162: 78 | B162: 21 | C162: Gast mit Namen angesprochen | D162: 1
A163: 79 | B163: 22 | C163: Vorbereiteter Meldezettel | D163: 1
A164: 80 | B164: 23 | C164: Gepäcksservice angeboten | D164: 1
A165: 81 | B165: 24 | C165: Begleitung auf das Zimmer angeboten | D165: 1
A166: 82 | B166: 25 | C166: Allgemeine Haus-Informationen angeboten bzw. gegeben | D166: 1
A167: 83 | B167: 26 | C167: Angenehmen Aufenthalt gewünscht | D167: 1
C171: Begleitung zum Zimmer | E171: Kommentar
A172: 84 | B172: 27 | C172: Erscheinungsbild des Mitarbeiters | D172: 1
A173: 85 | B173: 28 | C173: Freundlichkeit, Konversation | D173: 1
C177: Rooming | E177: Kommentar
A178: 86 | B178: 29 | C178: Hinweis auf Hauptschalter (für Strom im Zimmer) | D178: 1
A179: 87 | B179: 30 | C179: Hinweis auf Heizung oder Klimaanlage | D179: 1
A180: 88 | B180: 31 | C180: Kommunikationsgerät (z.B. Telefon) (schriftliche Infos ausreichend) | D180: 1
A181: 89 | B181: 32 | C181: Telefonverzeichnis bzw. -nummern (für Zimmerservice) - schriftliche Infos ausreichend | D181: 1
A182: 90 | B182: 33 | C182: Minibar oder Maxibar (bis 4*) (schriftliche Infos ausreichend) | D182: 1
A183: 91 | B183: 34 | C183: Safe (schriftliche Infos ausreichend) | D183: 1
A184: 92 | B184: 35 | C184: Wäsche-Service (schriftliche Infos ausreichend) | D184: 1
A185: 93 | B185: 36 | C185: Bügel-Service (schriftliche Infos ausreichend) | D185: 1
A186: 94 | B186: 37 | C186: Öffnungszeiten Restaurant, Bar (schriftliche Infos ausreichend) | D186: 1
A187: 95 | B187: 38 | C187: Zeitangabe Frühstück (schriftliche Infos ausreichend) | D187: 1
A188: 96 | B188: 39 | C188: Rezeption 24 Std. erreichbar und … Std. besetzt (3*S - 10; 4*S - 16; 5*/5*S - 24) | D188: 1
C189: Anzahl der erfüllten Kriterien | D189: =SUM(D138:D188) -> 39
C190: Multiplikation der Anzahl der erfüllten Kriterien mit | D190: =D732 -> 0.234741784
C191: Maximale Summe | D191: =D190*B188 -> 9.154929577
C192: Erreichte Punktanzahl | D192: =D190*D189 -> 9.154929577
C194: Kommentar
C197: 6. Zimmer
C199: Erster Eindruck und Allgemeiner Charakter | E199: Kommentar
A200: 97 | B200: 1 | C200: Raumklima (Frischer Geruch) | D200: 1
A201: 98 | B201: 2 | C201: Angenehme Temperatur | D201: 1
A202: 99 | B202: 3 | C202: Atmosphäre (Wohlfühlcharakter) | D202: 1
A203: 100 | B203: 4 | C203: Geräuschpegel (Ruhe) | D203: 1
A204: 101 | B204: 5 | C204: Entsprechendes Mobiliar | D204: 1
A205: 102 | B205: 6 | C205: Sauberkeit | D205: 1
A206: 103 | B206: 7 | C206: Willkommensbrief/-karte | D206: 1
A207: 104 | B207: 8 | C207: Willkommensgruß (z.B. Blumen, Obst, Konfekt…) | D207: 1
A208: 105 | B208: 9 | C208: Türschloss in einwandfreiem Zustand | D208: 1
C212: Das Bett | E212: Kommentar
A213: 106 | B213: 10 | C213: Dem Hotelstandard angemessen | D213: 1
A214: 107 | B214: 11 | C214: Qualität der Bettbezüge angemessen | D214: 1
A215: 108 | B215: 12 | C215: Matratze/Liegekomfort | D215: 1
A216: 109 | B216: 13 | C216: Bettdecken der Jahreszeit angepasst | D216: 1
A217: 110 | B217: 14 | C217: Zusatzkopfkissen auf Wunsch (kein Zierkissen) | D217: 1
A218: 111 | B218: 15 | C218: Zusatzdecke auf Wunsch | D218: 1
A219: 112 | B219: 16 | C219: Zwei Kopfkissen pro Gast (kein Zierkissen) | D219: 1
A220: 113 | B220: 17 | C220: Auswahl verschiedener Kopfkissen | D220: 1
A221: 114 | B221: 18 | C221: Allergikerfreundliche Bettwäsche und Einlagen auf Wunsch | D221: 1
C222: Einrichtung | E222: Kommentar
A223: 115 | B223: 19 | C223: Qualität und Zustand der Vorhänge | D223: 1
A224: 116 | B224: 20 | C224: Verdunkelung mit Vorhängen möglich | D224: 1
A225: 117 | B225: 21 | C225: Schalter, Steckdosen leicht erreichbar | D225: 1
A226: 118 | B226: 22 | C226: Einwandfreie Wände | D226: 1
A227: 119 | B227: 23 | C227: Einwandfreie Beleuchtung | D227: 1
A228: 120 | B228: 24 | C228: Einwandfreie Einrichtung (Mobiliar) | D228: 1
A229: 121 | B229: 25 | C229: Angemessene Anzahl einheitlicher Kleiderbügel (kein Draht) bis inkl. 3*; verschiedene Bügelarten 4*, 5*; | D229: 1
A230: 122 | B230: 26 | C230: Geräumige Ablagemöglichkeiten | D230: 1
A231: 123 | B231: 27 | C231: Geräumige Hängevorrichtung in den Kästen | D231: 1
C235: Ausstattung und Services | E235: Kommentar
A236: 124 | B236: 28 | C236: funktionstüchtige Audio- / Multimedia Unterhaltung (z.B. Radio, Streaming-Dienste) | D236: 1
A237: 125 | B237: 29 | C237: TV-Programme gut eingestellt | D237: 1
A238: 126 | B238: 30 | C238: Schreibmappe mit Schreibgeräten | D238: 1
A239: 127 | B239: 31 | C239: Kommunikationsgerät mit interner und externer Telefonfunktion | D239: 1
A240: 128 | B240: 32 | C240: Bedienungsanleitung für das Kommunikationsgerät (ab 4* zweisprachig verpflichtend) | D240: 1
A241: 129 | B241: 33 | C241: Schreibblock und einen Bleistift neben Telefon | D241: 1
A242: 130 | B242: 34 | C242: WLAN Internetzugang im öffentlichen Bereich und auf den Zimmern | D242: 1
A243: 131 | B243: 35 | C243: Private und sichere Druckmöglichkeit auf Wunsch (ab 4* verpflichtend) | D243: 1
A244: 132 | B244: 36 | C244: Internet-Endgerät auf dem Zimmer auf Wunsch (ab 5* verpflichtend) | D244: 1
A245: 133 | B245: 37 | C245: Einwandfreie Funktionalität aller elektrischen Einrichtungen (z.B. Licht, TV, Fön) | D245: 1
A246: 134 | B246: 38 | C246: Safe im Zimmer (ab 4* verpflichtend) | D246: 1
A247: 135 | B247: 39 | C247: Weckservice (oder Weckfunktion über das TV-Gerät, Telefon) | D247: 1
A248: 136 | B248: 40 | C248: Alternatives Weckservice (Verlässlichkeit, Freundlichkeit) | D248: 1
A249: 137 | B249: 41 | C249: "Bitte nicht stören/Bitte aufräumen" Angabemöglichkeit vorhanden | D249: 1
A250: 138 | B250: 42 | C250: Aktualität des Infomaterials (gedruckt oder digital) | D250: 1
A251: 139 | B251: 43 | C251: Sicherheitsbestimmungen (z.B. Brandschutz, Fluchtwege) sichtbar | D251: 1
A252: 140 | B252: 44 | C252: Zimmerpreise aufgehängt oder in Infomappe | D252: 1
A253: 141 | B253: 45 | C253: Aktuelles Medienangebot (gedruckt oder digital) | D253: 1
A254: 142 | B254: 46 | C254: Zweisprachiger Serviceleitfaden (gedruckt oder digital) | D254: 1
A255: 143 | B255: 47 | C255: Ladegeräte/Adapter auf Wunsch (z.B. für elektr. Geräte wie Handys, Tabletts...) ab 3* verpflichtend | D255: 1
A256: 144 | B256: 48 | C256: Internationaler Steckdosenadapter auf Wunsch (ab 4* verpflichtend) | D256: 1
A257: 145 | B257: 49 | C257: Mindestens zwei Trinkgläser auf Untersetzer (z.B. Serviette) | D257: 1
A258: 146 | B258: 50 | C258: Getränke im Roomservice (4* - 16h; 5* - 24h) | D258: 1
A259: 147 | B259: 51 | C259: Speisen im Roomservice (4* - 16h; 5* - 24h) | D259: 1
A260: 148 | B260: 52 | C260: Frühstückskarte im Roomservice | D260: 1
A261: 149 | B261: 53 | C261: Wäschereiservice | D261: 1
... 386 more rows

Sheet Freizeit + Tagung
C7: Fachverband Hotellerie
C11: Fragenkatalog für Mystery Guest-Check
C18: Arbeitsunterlage 2020-2025
C24: Dies ist die Auflistung der erforderlichen Prüfkriterien für Firmen, die einen Mystery-Test im Rahmen der Österreichischen Hotelklassifizierung durchführen. Über die Listung einer Firma entscheidet die Lenkungskommission bzw. der Fachverband Hotellerie nach Prüfung der Voraussetzungen.
C26: positiv erfülltes Kriterium | D26: 1
C27: negativ erfülltes Kriterium | D27: 0
C30: 1. Web-Auftritt
E31: Kommentar
A32: 1 | B32: 1 | C32: Nachvollziehbare Webadresse | D32: 1
A33: 2 | B33: 2 | C33: Funktionieren alle Links | D33: 1
A34: 3 | B34: 3 | C34: Übersichtlichkeit | D34: 1
A35: 4 | B35: 4 | C35: Such-Funktion | D35: 1
A36: 5 | B36: 5 | C36: Integriertes Gästefeedback | D36: 1
A37: 6 | B37: 6 | C37: Tipp-, Rechtschreib- und Grammatikfehler | D37: 1
A38: 7 | B38: 7 | C38: Aussagekräftiger, realistischer Auftritt mit Hotelbildern | D38: 1
A39: 8 | B39: 8 | C39: Aktualität | D39: 1
A40: 9 | B40: 9 | C40: Impressum | D40: 1
A41: 10 | B41: 10 | C41: Übersetzung in mindestens eine Fremdsprache (ab 3* verpflichtend) | D41: 1
A42: 11 | B42: 11 | C42: Kontaktangabe (Email, Telefon, etc.) | D42: 1
A43: 12 | B43: 12 | C43: Online-Buchbarkeit auf eigener Website | D43: 1
A44: 13 | B44: 13 | C44: Anfahrtsplan | D44: 1
A45: 14 | B45: 14 | C45: Allgemeinen Geschäftsbedingungen oder Stornobedingungen vorhanden | D45: 1
A46: 15 | B46: 15 | C46: Mobile Version der Website oder mobile Applikation | D46: 1
C47: Anzahl der erfüllten Kriterien | D47: =SUM(D32:D46) -> 15
C48: Multiplikation der Anzahl der erfüllten Kriterien mit | D48: =D729 -> 0.2352941176
C49: Maximale Summe | D49: =D48*B46 -> 3.529411765
C50: Erreichte Punktanzahl | D50: =D47*D48 -> 3.529411765
C52: Kommentar
C54: 2. E-Mail und Post
C56: Beantwortung Ihrer E-Mail Anfrage, | E56: Kommentar
A57: 16 | B57: 1 | C57: Innerhalb … Stunden ab Anfrage (3*S - 12; 4*S - 8; 5*/5*S - 4) | D57: 1
A58: 17 | B58: 2 | C58: Qualität (Schreibstil, Wortwahl, korrekte Anrede, Rechtsschreibung) | D58: 1
A59: 18 | B59: 3 | C59: Informationsgehalt (z.B. Zusatzangebote) | D59: 1
A60: 19 | B60: 4 | C60: Individuelle Bearbeitung | D60: 1
A61: 20 | B61: 5 | C61: Bei Angebot: Angaben zu Stornobedingungen | D61: 1
C65: Reservierungs-Bestätigung (E-Mail, Fax) als Antwort auf Ihre Buchung | E65: Kommentar
A66: 21 | B66: 6 | C66: Innerhalb … Stunden ab Reservierung (3*S - 24; 4*S - 12; 5*/5*S - 8) | D66: 1
A67: 22 | B67: 7 | C67: Qualität (Schreibstil, Wortwahl, korrekte Anrede, Rechtsschreibung) | D67: 1
A68: 23 | B68: 8 | C68: Informationsgehalt (u.a. Aktuelle Anfahrtsbeschreibung) | D68: 1
A69: 24 | B69: 9 | C69: Angaben zu Stornobedingungen | D69: 1
C73: Unterlagen per Post | E73: Kommentar
A74: 25 | B74: 10 | C74: Zusendung innerhalb von 3 Werktagen | D74: 1
A75: 26 | B75: 11 | C75: Begleitschreiben | D75: 1
A76: 27 | B76: 12 | C76: Qualität (Schreibstil, Wortwahl, korrekte Anrede, Rechtsschreibung) | D76: 1
A77: 28 | B77: 13 | C77: Informationsgehalt (z.B. Zusatzangebote) | D77: 1
A78: 29 | B78: 14 | C78: Individuelle Bearbeitung | D78: 1
A79: 30 | B79: 15 | C79: Qualitativ entsprechende Unterlagen, Prospekte | D79: 1
C80: Anzahl der erfüllten Kriterien | D80: =SUM(D57:D79) -> 15
C81: Multiplikation der Anzahl der erfüllten Kriterien mit | D81: =D729 -> 0.2352941176
C82: Maximale Summe | D82: =D81*B79 -> 3.529411765
C83: Erreichte Punktanzahl | D83: =D81*D80 -> 3.529411765
C85: Kommentar
C88: 3. Telefon
E89: Kommentar
A90: 31 | B90: 1 | C90: Wartezeit (3*S - 1 Min; 4*S - 30 Sek; 5*/5*S - 15 Sek) | D90: 1
A91: 32 | B91: 2 | C91: Während der Wartezeit Text- bzw. Tonschleife | D91: 1
A92: 33 | B92: 3 | C92: Herzlichkeit | D92: 1
A93: 34 | B93: 4 | C93: Klare deutliche Stimme und Aussprache | D93: 1
A94: 35 | B94: 5 | C94: Mit Namen angesprochen | D94: 1
A95: 36 | B95: 6 | C95: Vollständige Datenaufnahme (z.B. Adresse, Tel, Email-Nachfrage) | D95: 1
A96: 37 | B96: 7 | C96: Fachliche Kompetenz | D96: 1
A97: 38 | B97: 8 | C97: An- und Abreisedatum wiederholt und bestätigt | D97: 1
A98: 39 | B98: 9 | C98: Informationen über Kategorien | D98: 1
A99: 40 | B99: 10 | C99: Informationen über Preise | D99: 1
A100: 41 | B100: 11 | C100: Informationen über Zahlungsmodalitäten | D100: 1
A101: 42 | B101: 12 | C101: Informationen über Leistungen | D101: 1
A102: 43 | B102: 13 | C102: Informationen über Check-in-Zeiten | D102: 1
A103: 44 | B103: 14 | C103: Informationen über Zusatzangebote | D103: 1
A104: 45 | B104: 15 | C104: Anfahrts-, Wegbeschreibung | D104: 1
A105: 46 | B105: 16 | C105: Angebot zur vorläufigen Einbuchung | D105: 1
A106: 47 | B106: 17 | C106: Hinweis auf Stornobedingungen | D106: 1
A107: 48 | B107: 18 | C107: Freundliche Verabschiedung und Dank | D107: 1
C108: Anzahl der erfüllten Kriterien | D108: =SUM(D90:D107) -> 18
C109: Multiplikation der Anzahl der erfüllten Kriterien mit | D109: =D729 -> 0.2352941176
C110: Maximale Summe | D110: =D109*B107 -> 4.235294118
C111: Erreichte Punktanzahl | D111: =D109*D108 -> 4.235294118
C113: Kommentar
C116: 4. Anreise und Außenanlage
E117: Kommentar
A118: 49 | B118: 1 | C118: Auffindbarkeit (z.B. Beschilderung im Ort) | D118: 1
A119: 50 | B119: 2 | C119: Zufahrtsmöglichkeit | D119: 1
A120: 51 | B120: 3 | C120: Parkplätze | D120: 1
A121: 52 | B121: 4 | C121: Garagenplätze | D121: 1
A122: 53 | B122: 5 | C122: Beleuchtung | D122: 1
A123: 54 | B123: 6 | C123: Gepäckservice | D123: 1
A124: 55 | B124: 7 | C124: Einfache Orientierung | D124: 1
A125: 56 | B125: 8 | C125: Sauberkeit und Zustand | D125: 1
A126: 57 | B126: 9 | C126: Parkservice (z.B. Doorman, Wagenmeiser) | D126: 1
C127: Anzahl der erfüllten Kriterien | D127: =SUM(D118:D126) -> 9
C128: Multiplikation der Anzahl der erfüllten Kriterien mit | D128: =D729 -> 0.2352941176
C129: Maximale Summe | D129: =D128*B126 -> 2.117647059
C130: Erreichte Punktanzahl | D130: =D128*D127 -> 2.117647059
C132: Kommentar
C135: 5. Check-In
C137: Eingang | E137: Kommentar
A138: 58 | B138: 1 | C138: Raumklima (Geruch) | D138: 1
A139: 59 | B139: 2 | C139: Raumtemperatur | D139: 1
A140: 60 | B140: 3 | C140: Beleuchtung ausreichend | D140: 1
A141: 61 | B141: 4 | C141: Ambiente/Atmosphäre | D141: 1
A142: 62 | B142: 5 | C142: Entsprechend qualitatives Mobiliar | D142: 1
A143: 63 | B143: 6 | C143: Sauberkeit und Ordnung | D143: 1
A144: 64 | B144: 7 | C144: Stimmige Dekorationen | D144: 1
A145: 65 | B145: 8 | C145: Großzügiger Sitzbereich für Gäste | D145: 1
A146: 66 | B146: 9 | C146: Erscheinungsbild Check-In-Bereich (Front Office - Sauberkeit, Ordnung) | D146: 1
C150: Front Office Mitarbeiter | E150: Kommentar
A151: 67 | B151: 10 | C151: Anwesenheit | D151: 1
A152: 68 | B152: 11 | C152: Begrüßung (z.B. Welcome Drink) | D152: 1
A153: 69 | B153: 12 | C153: Herzlichkeit, Freundlichkeit | D153: 1
A154: 70 | B154: 13 | C154: Erscheinungsbild Mitarbeiter (z.B. Uniform, Namensschild) | D154: 1
A155: 71 | B155: 14 | C155: Fachkompetenz | D155: 1
A156: 72 | B156: 15 | C156: Fremdsprachenkenntnisse | D156: 1
A157: 73 | B157: 16 | C157: Aufmerksamkeit | D157: 1
A158: 74 | B158: 17 | C158: Sorgfältigkeit | D158: 1
A159: 75 | B159: 18 | C159: Effizienz (Schnelligkeit, Flexibilität) | D159: 1
A160: 76 | B160: 19 | C160: Hilfsbereitschaft | D160: 1
A161: 77 | B161: 20 | C161: Klare, gut verständliche Aussprache | D161: 1
A162: 78 | B162: 21 | C162: Gast mit Namen angesprochen | D162: 1
A163: 79 | B163: 22 | C163: Vorbereiteter Meldezettel | D163: 1
A164: 80 | B164: 23 | C164: Gepäcksservice angeboten | D164: 1
A165: 81 | B165: 24 | C165: Begleitung auf das Zimmer angeboten | D165: 1
A166: 82 | B166: 25 | C166: Allgemeine Haus-Informationen angeboten bzw. gegeben | D166: 1
A167: 83 | B167: 26 | C167: Angenehmen Aufenthalt gewünscht | D167: 1
C171: Begleitung zum Zimmer | E171: Kommentar
A172: 84 | B172: 27 | C172: Erscheinungsbild des Mitarbeiters | D172: 1
A173: 85 | B173: 28 | C173: Freundlichkeit, Konversation | D173: 1
C177: Rooming | E177: Kommentar
A178: 86 | B178: 29 | C178: Hinweis auf Hauptschalter (für Strom im Zimmer) | D178: 1
A179: 87 | B179: 30 | C179: Hinweis auf Heizung oder Klimaanlage | D179: 1
A180: 88 | B180: 31 | C180: Kommunikationsgerät (z.B. Telefon) (schriftliche Infos ausreichend) | D180: 1
A181: 89 | B181: 32 | C181: Telefonverzeichnis bzw. -nummern (für Zimmerservice) - schriftliche Infos ausreichend | D181: 1
A182: 90 | B182: 33 | C182: Minibar oder Maxibar (bis 4*) (schriftliche Infos ausreichend) | D182: 1
A183: 91 | B183: 34 | C183: Safe (schriftliche Infos ausreichend) | D183: 1
A184: 92 | B184: 35 | C184: Wäsche-Service (schriftliche Infos ausreichend) | D184: 1
A185: 93 | B185: 36 | C185: Bügel-Service (schriftliche Infos ausreichend) | D185: 1
A186: 94 | B186: 37 | C186: Öffnungszeiten Restaurant, Bar (schriftliche Infos ausreichend) | D186: 1
A187: 95 | B187: 38 | C187: Zeitangabe Frühstück (schriftliche Infos ausreichend) | D187: 1
A188: 96 | B188: 39 | C188: Rezeption 24 Std. erreichbar und … Std. besetzt (3*S - 10; 4*S - 16; 5*/5*S - 24) | D188: 1
C189: Anzahl der erfüllten Kriterien | D189: =SUM(D138:D188) -> 39
C190: Multiplikation der Anzahl der erfüllten Kriterien mit | D190: =D729 -> 0.2352941176
C191: Maximale Summe | D191: =D190*B188 -> 9.176470588
C192: Erreichte Punktanzahl | D192: =D190*D189 -> 9.176470588
C194: Kommentar
C197: 6. Zimmer
C199: Erster Eindruck und Allgemeiner Charakter | E199: Kommentar
A200: 97 | B200: 1 | C200: Raumklima (Frischer Geruch) | D200: 1
A201: 98 | B201: 2 | C201: Angenehme Temperatur | D201: 1
A202: 99 | B202: 3 | C202: Atmosphäre (Wohlfühlcharakter) | D202: 1
A203: 100 | B203: 4 | C203: Geräuschpegel (Ruhe) | D203: 1
A204: 101 | B204: 5 | C204: Entsprechendes Mobiliar | D204: 1
A205: 102 | B205: 6 | C205: Sauberkeit | D205: 1
A206: 103 | B206: 7 | C206: Willkommensbrief/-karte | D206: 1
A207: 104 | B207: 8 | C207: Willkommensgruß (z.B. Blumen, Obst, Konfekt…) | D207: 1
A208: 105 | B208: 9 | C208: Türschloss in einwandfreiem Zustand | D208: 1
C212: Das Bett | E212: Kommentar
A213: 106 | B213: 10 | C213: Dem Hotelstandard angemessen | D213: 1
A214: 107 | B214: 11 | C214: Qualität der Bettbezüge angemessen | D214: 1
A215: 108 | B215: 12 | C215: Matratze/Liegekomfort | D215: 1
A216: 109 | B216: 13 | C216: Bettdecken der Jahreszeit angepasst | D216: 1
A217: 110 | B217: 14 | C217: Zusatzkopfkissen auf Wunsch (kein Zierkissen) | D217: 1
A218: 111 | B218: 15 | C218: Zusatzdecke auf Wunsch | D218: 1
A219: 112 | B219: 16 | C219: Zwei Kopfkissen pro Gast (kein Zierkissen) | D219: 1
A220: 113 | B220: 17 | C220: Auswahl verschiedener Kopfkissen | D220: 1
A221: 114 | B221: 18 | C221: Allergikerfreundliche Bettwäsche und Einlagen auf Wunsch | D221: 1
C222: Einrichtung | E222: Kommentar
A223: 115 | B223: 19 | C223: Qualität und Zustand der Vorhänge | D223: 1
A224: 116 | B224: 20 | C224: Verdunkelung mit Vorhängen möglich | D224: 1
A225: 117 | B225: 21 | C225: Schalter, Steckdosen leicht erreichbar | D225: 1
A226: 118 | B226: 22 | C226: Einwandfreie Wände | D226: 1
A227: 119 | B227: 23 | C227: Einwandfreie Beleuchtung | D227: 1
A228: 120 | B228: 24 | C228: Einwandfreie Einrichtung (Mobiliar) | D228: 1
A229: 121 | B229: 25 | C229: Angemessene Anzahl einheitlicher Kleiderbügel (kein Draht) bis inkl. 3*; verschiedene Bügelarten 4*, 5*; | D229: 1
A230: 122 | B230: 26 | C230: Geräumige Ablagemöglichkeiten | D230: 1
A231: 123 | B231: 27 | C231: Geräumige Hängevorrichtung in den Kästen | D231: 1
C235: Ausstattung und Services | E235: Kommentar
A236: 124 | B236: 28 | C236: funktionstüchtige Audio- / Multimedia Unterhaltung (z.B. Radio, Streaming-Dienste) | D236: 1
A237: 125 | B237: 29 | C237: TV-Programme gut eingestellt | D237: 1
A238: 126 | B238: 30 | C238: Schreibmappe mit Schreibgeräten | D238: 1
A239: 127 | B239: 31 | C239: Kommunikationsgerät mit interner und externer Telefonfunktion | D239: 1
A240: 128 | B240: 32 | C240: Bedienungsanleitung für das Kommunikationsgerät (ab 4* zweisprachig verpflichtend) | D240: 1
A241: 129 | B241: 33 | C241: Schreibblock und einen Bleistift neben Telefon | D241: 1
A242: 130 | B242: 34 | C242: WLAN Internetzugang im öffentlichen Bereich und auf den Zimmern | D242: 1
A243: 131 | B243: 35 | C243: Private und sichere Druckmöglichkeit auf Wunsch (ab 4* verpflichtend) | D243: 1
A244: 132 | B244: 36 | C244: Internet-Endgerät auf dem Zimmer auf Wunsch (ab 5* verpflichtend) | D244: 1
A245: 133 | B245: 37 | C245: Einwandfreie Funktionalität aller elektrischen Einrichtungen (z.B. Licht, TV, Fön) | D245: 1
A246: 134 | B246: 38 | C246: Safe im Zimmer (ab 4* verpflichtend) | D246: 1
A247: 135 | B247: 39 | C247: Weckservice (oder Weckfunktion über das TV-Gerät, Telefon) | D247: 1
A248: 136 | B248: 40 | C248: Alternatives Weckservice (Verlässlichkeit, Freundlichkeit) | D248: 1
A249: 137 | B249: 41 | C249: "Bitte nicht stören/Bitte aufräumen" Angabemöglichkeit vorhanden | D249: 1
A250: 138 | B250: 42 | C250: Aktualität des Infomaterials (gedruckt oder digital) | D250: 1
A251: 139 | B251: 43 | C251: Sicherheitsbestimmungen (z.B. Brandschutz, Fluchtwege) sichtbar | D251: 1
A252: 140 | B252: 44 | C252: Zimmerpreise aufgehängt oder in Infomappe | D252: 1
A253: 141 | B253: 45 | C253: Aktuelles Medienangebot (gedruckt oder digital) | D253: 1
A254: 142 | B254: 46 | C254: Zweisprachiger Serviceleitfaden (gedruckt oder digital) | D254: 1
A255: 143 | B255: 47 | C255: Ladegeräte/Adapter auf Wunsch (z.B. für elektr. Geräte wie Handys, Tabletts...) ab 3* verpflichtend | D255: 1
A256: 144 | B256: 48 | C256: Internationaler Steckdosenadapter auf Wunsch (ab 4* verpflichtend) | D256: 1
A257: 145 | B257: 49 | C257: Mindestens zwei Trinkgläser auf Untersetzer (z.B. Serviette) | D257: 1
A258: 146 | B258: 50 | C258: Getränke im Roomservice (4* - 16h; 5* - 24h) | D258: 1
A259: 147 | B259: 51 | C259: Speisen im Roomservice (4* - 16h; 5* - 24h) | D259: 1
A260: 148 | B260: 52 | C260: Frühstückskarte im Roomservice | D260: 1
A261: 149 | B261: 53 | C261: Wäschereiservice | D261: 1
... 385 more rows

Sheet Tagung + SPA
C7: Fachverband Hotellerie
C11: Fragenkatalog für Mystery Guest-Check
C18: Arbeitsunterlage 2020-2025
C24: Dies ist die Auflistung der erforderlichen Prüfkriterien für Firmen, die einen Mystery-Test im Rahmen der Österreichischen Hotelklassifizierung durchführen. Über die Listung einer Firma entscheidet die Lenkungskommission bzw. der Fachverband Hotellerie nach Prüfung der Voraussetzungen.
C26: positiv erfülltes Kriterium | D26: 1
C27: negativ erfülltes Kriterium | D27: 0
C30: 1. Web-Auftritt
E31: Kommentar
A32: 1 | B32: 1 | C32: Nachvollziehbare Webadresse | D32: 1
A33: 2 | B33: 2 | C33: Funktionieren alle Links | D33: 1
A34: 3 | B34: 3 | C34: Übersichtlichkeit | D34: 1
A35: 4 | B35: 4 | C35: Such-Funktion | D35: 1
A36: 5 | B36: 5 | C36: Integriertes Gästefeedback | D36: 1
A37: 6 | B37: 6 | C37: Tipp-, Rechtschreib- und Grammatikfehler | D37: 1
A38: 7 | B38: 7 | C38: Aussagekräftiger, realistischer Auftritt mit Hotelbildern | D38: 1
A39: 8 | B39: 8 | C39: Aktualität | D39: 1
A40: 9 | B40: 9 | C40: Impressum | D40: 1
A41: 10 | B41: 10 | C41: Übersetzung in mindestens eine Fremdsprache (ab 3* verpflichtend) | D41: 1
A42: 11 | B42: 11 | C42: Kontaktangabe (Email, Telefon, etc.) | D42: 1
A43: 12 | B43: 12 | C43: Online-Buchbarkeit auf eigener Website | D43: 1
A44: 13 | B44: 13 | C44: Anfahrtsplan | D44: 1
A45: 14 | B45: 14 | C45: Allgemeinen Geschäftsbedingungen oder Stornobedingungen vorhanden | D45: 1
A46: 15 | B46: 15 | C46: Mobile Version der Website oder mobile Applikation | D46: 1
C47: Anzahl der erfüllten Kriterien | D47: =SUM(D32:D46) -> 15
C48: Multiplikation der Anzahl der erfüllten Kriterien mit | D48: =D729 -> 0.234741784
C49: Maximale Summe | D49: =D48*B46 -> 3.521126761
C50: Erreichte Punktanzahl | D50: =D47*D48 -> 3.521126761
C52: Kommentar
C54: 2. E-Mail und Post
C56: Beantwortung Ihrer E-Mail Anfrage, | E56: Kommentar
A57: 16 | B57: 1 | C57: Innerhalb … Stunden ab Anfrage (3*S - 12; 4*S - 8; 5*/5*S - 4) | D57: 1
A58: 17 | B58: 2 | C58: Qualität (Schreibstil, Wortwahl, korrekte Anrede, Rechtsschreibung) | D58: 1
A59: 18 | B59: 3 | C59: Informationsgehalt (z.B. Zusatzangebote) | D59: 1
A60: 19 | B60: 4 | C60: Individuelle Bearbeitung | D60: 1
A61: 20 | B61: 5 | C61: Bei Angebot: Angaben zu Stornobedingungen | D61: 1
C65: Reservierungs-Bestätigung (E-Mail, Fax) als Antwort auf Ihre Buchung | E65: Kommentar
A66: 21 | B66: 6 | C66: Innerhalb … Stunden ab Reservierung (3*S - 24; 4*S - 12; 5*/5*S - 8) | D66: 1
A67: 22 | B67: 7 | C67: Qualität (Schreibstil, Wortwahl, korrekte Anrede, Rechtsschreibung) | D67: 1
A68: 23 | B68: 8 | C68: Informationsgehalt (u.a. Aktuelle Anfahrtsbeschreibung) | D68: 1
A69: 24 | B69: 9 | C69: Angaben zu Stornobedingungen | D69: 1
C73: Unterlagen per Post | E73: Kommentar
A74: 25 | B74: 10 | C74: Zusendung innerhalb von 3 Werktagen | D74: 1
A75: 26 | B75: 11 | C75: Begleitschreiben | D75: 1
A76: 27 | B76: 12 | C76: Qualität (Schreibstil, Wortwahl, korrekte Anrede, Rechtsschreibung) | D76: 1
A77: 28 | B77: 13 | C77: Informationsgehalt (z.B. Zusatzangebote) | D77: 1
A78: 29 | B78: 14 | C78: Individuelle Bearbeitung | D78: 1
A79: 30 | B79: 15 | C79: Qualitativ entsprechende Unterlagen, Prospekte | D79: 1
C80: Anzahl der erfüllten Kriterien | D80: =SUM(D57:D79) -> 15
C81: Multiplikation der Anzahl der erfüllten Kriterien mit | D81: =D729 -> 0.234741784
C82: Maximale Summe | D82: =D81*B79 -> 3.521126761
C83: Erreichte Punktanzahl | D83: =D81*D80 -> 3.521126761
C85: Kommentar
C88: 3. Telefon
E89: Kommentar
A90: 31 | B90: 1 | C90: Wartezeit (3*S - 1 Min; 4*S - 30 Sek; 5*/5*S - 15 Sek) | D90: 1
A91: 32 | B91: 2 | C91: Während der Wartezeit Text- bzw. Tonschleife | D91: 1
A92: 33 | B92: 3 | C92: Herzlichkeit | D92: 1
A93: 34 | B93: 4 | C93: Klare deutliche Stimme und Aussprache | D93: 1
A94: 35 | B94: 5 | C94: Mit Namen angesprochen | D94: 1
A95: 36 | B95: 6 | C95: Vollständige Datenaufnahme (z.B. Adresse, Tel, Email-Nachfrage) | D95: 1
A96: 37 | B96: 7 | C96: Fachliche Kompetenz | D96: 1
A97: 38 | B97: 8 | C97: An- und Abreisedatum wiederholt und bestätigt | D97: 1
A98: 39 | B98: 9 | C98: Informationen über Kategorien | D98: 1
A99: 40 | B99: 10 | C99: Informationen über Preise | D99: 1
A100: 41 | B100: 11 | C100: Informationen über Zahlungsmodalitäten | D100: 1
A101: 42 | B101: 12 | C101: Informationen über Leistungen | D101: 1
A102: 43 | B102: 13 | C102: Informationen über Check-in-Zeiten | D102: 1
A103: 44 | B103: 14 | C103: Informationen über Zusatzangebote | D103: 1
A104: 45 | B104: 15 | C104: Anfahrts-, Wegbeschreibung | D104: 1
A105: 46 | B105: 16 | C105: Angebot zur vorläufigen Einbuchung | D105: 1
A106: 47 | B106: 17 | C106: Hinweis auf Stornobedingungen | D106: 1
A107: 48 | B107: 18 | C107: Freundliche Verabschiedung und Dank | D107: 1
C108: Anzahl der erfüllten Kriterien | D108: =SUM(D90:D107) -> 18
C109: Multiplikation der Anzahl der erfüllten Kriterien mit | D109: =D729 -> 0.234741784
C110: Maximale Summe | D110: =D109*B107 -> 4.225352113
C111: Erreichte Punktanzahl | D111: =D109*D108 -> 4.225352113
C113: Kommentar
C116: 4. Anreise und Außenanlage
E117: Kommentar
A118: 49 | B118: 1 | C118: Auffindbarkeit (z.B. Beschilderung im Ort) | D118: 1
A119: 50 | B119: 2 | C119: Zufahrtsmöglichkeit | D119: 1
A120: 51 | B120: 3 | C120: Parkplätze | D120: 1
A121: 52 | B121: 4 | C121: Garagenplätze | D121: 1
A122: 53 | B122: 5 | C122: Beleuchtung | D122: 1
A123: 54 | B123: 6 | C123: Gepäckservice | D123: 1
A124: 55 | B124: 7 | C124: Einfache Orientierung | D124: 1
A125: 56 | B125: 8 | C125: Sauberkeit und Zustand | D125: 1
A126: 57 | B126: 9 | C126: Parkservice (z.B. Doorman, Wagenmeiser) | D126: 1
C127: Anzahl der erfüllten Kriterien | D127: =SUM(D118:D126) -> 9
C128: Multiplikation der Anzahl der erfüllten Kriterien mit | D128: =D729 -> 0.234741784
C129: Maximale Summe | D129: =D128*B126 -> 2.112676056
C130: Erreichte Punktanzahl | D130: =D128*D127 -> 2.112676056
C132: Kommentar
C135: 5. Check-In
C137: Eingang | E137: Kommentar
A138: 58 | B138: 1 | C138: Raumklima (Geruch) | D138: 1
A139: 59 | B139: 2 | C139: Raumtemperatur | D139: 1
A140: 60 | B140: 3 | C140: Beleuchtung ausreichend | D140: 1
A141: 61 | B141: 4 | C141: Ambiente/Atmosphäre | D141: 1
A142: 62 | B142: 5 | C142: Entsprechend qualitatives Mobiliar | D142: 1
A143: 63 | B143: 6 | C143: Sauberkeit und Ordnung | D143: 1
A144: 64 | B144: 7 | C144: Stimmige Dekorationen | D144: 1
A145: 65 | B145: 8 | C145: Großzügiger Sitzbereich für Gäste | D145: 1
A146: 66 | B146: 9 | C146: Erscheinungsbild Check-In-Bereich (Front Office - Sauberkeit, Ordnung) | D146: 1
C150: Front Office Mitarbeiter | E150: Kommentar
A151: 67 | B151: 10 | C151: Anwesenheit | D151: 1
A152: 68 | B152: 11 | C152: Begrüßung (z.B. Welcome Drink) | D152: 1
A153: 69 | B153: 12 | C153: Herzlichkeit, Freundlichkeit | D153: 1
A154: 70 | B154: 13 | C154: Erscheinungsbild Mitarbeiter (z.B. Uniform, Namensschild) | D154: 1
A155: 71 | B155: 14 | C155: Fachkompetenz | D155: 1
A156: 72 | B156: 15 | C156: Fremdsprachenkenntnisse | D156: 1
A157: 73 | B157: 16 | C157: Aufmerksamkeit | D157: 1
A158: 74 | B158: 17 | C158: Sorgfältigkeit | D158: 1
A159: 75 | B159: 18 | C159: Effizienz (Schnelligkeit, Flexibilität) | D159: 1
A160: 76 | B160: 19 | C160: Hilfsbereitschaft | D160: 1
A161: 77 | B161: 20 | C161: Klare, gut verständliche Aussprache | D161: 1
A162: 78 | B162: 21 | C162: Gast mit Namen angesprochen | D162: 1
A163: 79 | B163: 22 | C163: Vorbereiteter Meldezettel | D163: 1
A164: 80 | B164: 23 | C164: Gepäcksservice angeboten | D164: 1
A165: 81 | B165: 24 | C165: Begleitung auf das Zimmer angeboten | D165: 1
A166: 82 | B166: 25 | C166: Allgemeine Haus-Informationen angeboten bzw. gegeben | D166: 1
A167: 83 | B167: 26 | C167: Angenehmen Aufenthalt gewünscht | D167: 1
C171: Begleitung zum Zimmer | E171: Kommentar
A172: 84 | B172: 27 | C172: Erscheinungsbild des Mitarbeiters | D172: 1
A173: 85 | B173: 28 | C173: Freundlichkeit, Konversation | D173: 1
C177: Rooming | E177: Kommentar
A178: 86 | B178: 29 | C178: Hinweis auf Hauptschalter (für Strom im Zimmer) | D178: 1
A179: 87 | B179: 30 | C179: Hinweis auf Heizung oder Klimaanlage | D179: 1
A180: 88 | B180: 31 | C180: Kommunikationsgerät (z.B. Telefon) (schriftliche Infos ausreichend) | D180: 1
A181: 89 | B181: 32 | C181: Telefonverzeichnis bzw. -nummern (für Zimmerservice) - schriftliche Infos ausreichend | D181: 1
A182: 90 | B182: 33 | C182: Minibar oder Maxibar (bis 4*) (schriftliche Infos ausreichend) | D182: 1
A183: 91 | B183: 34 | C183: Safe (schriftliche Infos ausreichend) | D183: 1
A184: 92 | B184: 35 | C184: Wäsche-Service (schriftliche Infos ausreichend) | D184: 1
A185: 93 | B185: 36 | C185: Bügel-Service (schriftliche Infos ausreichend) | D185: 1
A186: 94 | B186: 37 | C186: Öffnungszeiten Restaurant, Bar (schriftliche Infos ausreichend) | D186: 1
A187: 95 | B187: 38 | C187: Zeitangabe Frühstück (schriftliche Infos ausreichend) | D187: 1
A188: 96 | B188: 39 | C188: Rezeption 24 Std. erreichbar und … Std. besetzt (3*S - 10; 4*S - 16; 5*/5*S - 24) | D188: 1
C189: Anzahl der erfüllten Kriterien | D189: =SUM(D138:D188) -> 39
C190: Multiplikation der Anzahl der erfüllten Kriterien mit | D190: =D729 -> 0.234741784
C191: Maximale Summe | D191: =D190*B188 -> 9.154929577
C192: Erreichte Punktanzahl | D192: =D190*D189 -> 9.154929577
C194: Kommentar
C197: 6. Zimmer
C199: Erster Eindruck und Allgemeiner Charakter | E199: Kommentar
A200: 97 | B200: 1 | C200: Raumklima (Frischer Geruch) | D200: 1
A201: 98 | B201: 2 | C201: Angenehme Temperatur | D201: 1
A202: 99 | B202: 3 | C202: Atmosphäre (Wohlfühlcharakter) | D202: 1
A203: 100 | B203: 4 | C203: Geräuschpegel (Ruhe) | D203: 1
A204: 101 | B204: 5 | C204: Entsprechendes Mobiliar | D204: 1
A205: 102 | B205: 6 | C205: Sauberkeit | D205: 1
A206: 103 | B206: 7 | C206: Willkommensbrief/-karte | D206: 1
A207: 104 | B207: 8 | C207: Willkommensgruß (z.B. Blumen, Obst, Konfekt…) | D207: 1
A208: 105 | B208: 9 | C208: Türschloss in einwandfreiem Zustand | D208: 1
C212: Das Bett | E212: Kommentar
A213: 106 | B213: 10 | C213: Dem Hotelstandard angemessen | D213: 1
A214: 107 | B214: 11 | C214: Qualität der Bettbezüge angemessen | D214: 1
A215: 108 | B215: 12 | C215: Matratze/Liegekomfort | D215: 1
A216: 109 | B216: 13 | C216: Bettdecken der Jahreszeit angepasst | D216: 1
A217: 110 | B217: 14 | C217: Zusatzkopfkissen auf Wunsch (kein Zierkissen) | D217: 1
A218: 111 | B218: 15 | C218: Zusatzdecke auf Wunsch | D218: 1
A219: 112 | B219: 16 | C219: Zwei Kopfkissen pro Gast (kein Zierkissen) | D219: 1
A220: 113 | B220: 17 | C220: Auswahl verschiedener Kopfkissen | D220: 1
A221: 114 | B221: 18 | C221: Allergikerfreundliche Bettwäsche und Einlagen auf Wunsch | D221: 1
C222: Einrichtung | E222: Kommentar
A223: 115 | B223: 19 | C223: Qualität und Zustand der Vorhänge | D223: 1
A224: 116 | B224: 20 | C224: Verdunkelung mit Vorhängen möglich | D224: 1
A225: 117 | B225: 21 | C225: Schalter, Steckdosen leicht erreichbar | D225: 1
A226: 118 | B226: 22 | C226: Einwandfreie Wände | D226: 1
A227: 119 | B227: 23 | C227: Einwandfreie Beleuchtung | D227: 1
A228: 120 | B228: 24 | C228: Einwandfreie Einrichtung (Mobiliar) | D228: 1
A229: 121 | B229: 25 | C229: Angemessene Anzahl einheitlicher Kleiderbügel (kein Draht) bis inkl. 3*; verschiedene Bügelarten 4*, 5*; | D229: 1
A230: 122 | B230: 26 | C230: Geräumige Ablagemöglichkeiten | D230: 1
A231: 123 | B231: 27 | C231: Geräumige Hängevorrichtung in den Kästen | D231: 1
C235: Ausstattung und Services | E235: Kommentar
A236: 124 | B236: 28 | C236: funktionstüchtige Audio- / Multimedia Unterhaltung (z.B. Radio, Streaming-Dienste) | D236: 1
A237: 125 | B237: 29 | C237: TV-Programme gut eingestellt | D237: 1
A238: 126 | B238: 30 | C238: Schreibmappe mit Schreibgeräten | D238: 1
A239: 127 | B239: 31 | C239: Kommunikationsgerät mit interner und externer Telefonfunktion | D239: 1
A240: 128 | B240: 32 | C240: Bedienungsanleitung für das Kommunikationsgerät (ab 4* zweisprachig verpflichtend) | D240: 1
A241: 129 | B241: 33 | C241: Schreibblock und einen Bleistift neben Telefon | D241: 1
A242: 130 | B242: 34 | C242: WLAN Internetzugang im öffentlichen Bereich und auf den Zimmern | D242: 1
A243: 131 | B243: 35 | C243: Private und sichere Druckmöglichkeit auf Wunsch (ab 4* verpflichtend) | D243: 1
A244: 132 | B244: 36 | C244: Internet-Endgerät auf dem Zimmer auf Wunsch (ab 5* verpflichtend) | D244: 1
A245: 133 | B245: 37 | C245: Einwandfreie Funktionalität aller elektrischen Einrichtungen (z.B. Licht, TV, Fön) | D245: 1
A246: 134 | B246: 38 | C246: Safe im Zimmer (ab 4* verpflichtend) | D246: 1
A247: 135 | B247: 39 | C247: Weckservice (oder Weckfunktion über das TV-Gerät, Telefon) | D247: 1
A248: 136 | B248: 40 | C248: Alternatives Weckservice (Verlässlichkeit, Freundlichkeit) | D248: 1
A249: 137 | B249: 41 | C249: "Bitte nicht stören/Bitte aufräumen" Angabemöglichkeit vorhanden | D249: 1
A250: 138 | B250: 42 | C250: Aktualität des Infomaterials (gedruckt oder digital) | D250: 1
A251: 139 | B251: 43 | C251: Sicherheitsbestimmungen (z.B. Brandschutz, Fluchtwege) sichtbar | D251: 1
A252: 140 | B252: 44 | C252: Zimmerpreise aufgehängt oder in Infomappe | D252: 1
A253: 141 | B253: 45 | C253: Aktuelles Medienangebot (gedruckt oder digital) | D253: 1
A254: 142 | B254: 46 | C254: Zweisprachiger Serviceleitfaden (gedruckt oder digital) | D254: 1
A255: 143 | B255: 47 | C255: Ladegeräte/Adapter auf Wunsch (z.B. für elektr. Geräte wie Handys, Tabletts...) ab 3* verpflichtend | D255: 1
A256: 144 | B256: 48 | C256: Internationaler Steckdosenadapter auf Wunsch (ab 4* verpflichtend) | D256: 1
A257: 145 | B257: 49 | C257: Mindestens zwei Trinkgläser auf Untersetzer (z.B. Serviette) | D257: 1
A258: 146 | B258: 50 | C258: Getränke im Roomservice (4* - 16h; 5* - 24h) | D258: 1
A259: 147 | B259: 51 | C259: Speisen im Roomservice (4* - 16h; 5* - 24h) | D259: 1
A260: 148 | B260: 52 | C260: Frühstückskarte im Roomservice | D260: 1
A261: 149 | B261: 53 | C261: Wäschereiservice | D261: 1
... 386 more rows

Sheet SPA
C7: Fachverband Hotellerie
C11: Fragenkatalog für Mystery Guest-Check
C18: Arbeitsunterlage 2020-2025
C24: Dies ist die Auflistung der erforderlichen Prüfkriterien für Firmen, die einen Mystery-Test im Rahmen der Österreichischen Hotelklassifizierung durchführen. Über die Listung einer Firma entscheidet die Lenkungskommission bzw. der Fachverband Hotellerie nach Prüfung der Voraussetzungen.
C26: positiv erfülltes Kriterium | D26: 1
C27: negativ erfülltes Kriterium | D27: 0
C30: 1. Web-Auftritt
E31: Kommentar
A32: 1 | B32: 1 | C32: Nachvollziehbare Webadresse | D32: 1
A33: 2 | B33: 2 | C33: Funktionieren alle Links | D33: 1
A34: 3 | B34: 3 | C34: Übersichtlichkeit | D34: 1
A35: 4 | B35: 4 | C35: Such-Funktion | D35: 1
A36: 5 | B36: 5 | C36: Integriertes Gästefeedback | D36: 1
A37: 6 | B37: 6 | C37: Tipp-, Rechtschreib- und Grammatikfehler | D37: 1
A38: 7 | B38: 7 | C38: Aussagekräftiger, realistischer Auftritt mit Hotelbildern | D38: 1
A39: 8 | B39: 8 | C39: Aktualität | D39: 1
A40: 9 | B40: 9 | C40: Impressum | D40: 1
A41: 10 | B41: 10 | C41: Übersetzung in mindestens eine Fremdsprache (ab 3* verpflichtend) | D41: 1
A42: 11 | B42: 11 | C42: Kontaktangabe (Email, Telefon, etc.) | D42: 1
A43: 12 | B43: 12 | C43: Online-Buchbarkeit auf eigener Website | D43: 1
A44: 13 | B44: 13 | C44: Anfahrtsplan | D44: 1
A45: 14 | B45: 14 | C45: Allgemeinen Geschäftsbedingungen oder Stornobedingungen vorhanden | D45: 1
A46: 15 | B46: 15 | C46: Mobile Version der Website oder mobile Applikation | D46: 1
C47: Anzahl der erfüllten Kriterien | D47: =SUM(D32:D46) -> 15
C48: Multiplikation der Anzahl der erfüllten Kriterien mit | D48: =D694 -> 0.2481389578
C49: Maximale Summe | D49: =D48*B46 -> 3.722084367
C50: Erreichte Punktanzahl | D50: =D47*D48 -> 3.722084367
C52: Kommentar
C54: 2. E-Mail und Post
C56: Beantwortung Ihrer E-Mail Anfrage, | E56: Kommentar
A57: 16 | B57: 1 | C57: Innerhalb … Stunden ab Anfrage (3*S - 12; 4*S - 8; 5*/5*S - 4) | D57: 1
A58: 17 | B58: 2 | C58: Qualität (Schreibstil, Wortwahl, korrekte Anrede, Rechtsschreibung) | D58: 1
A59: 18 | B59: 3 | C59: Informationsgehalt (z.B. Zusatzangebote) | D59: 1
A60: 19 | B60: 4 | C60: Individuelle Bearbeitung | D60: 1
A61: 20 | B61: 5 | C61: Bei Angebot: Angaben zu Stornobedingungen | D61: 1
C65: Reservierungs-Bestätigung (E-Mail, Fax) als Antwort auf Ihre Buchung | E65: Kommentar
A66: 21 | B66: 6 | C66: Innerhalb … Stunden ab Reservierung (3*S - 24; 4*S - 12; 5*/5*S - 8) | D66: 1
A67: 22 | B67: 7 | C67: Qualität (Schreibstil, Wortwahl, korrekte Anrede, Rechtsschreibung) | D67: 1
A68: 23 | B68: 8 | C68: Informationsgehalt (u.a. Aktuelle Anfahrtsbeschreibung) | D68: 1
A69: 24 | B69: 9 | C69: Angaben zu Stornobedingungen | D69: 1
C73: Unterlagen per Post | E73: Kommentar
A74: 25 | B74: 10 | C74: Zusendung innerhalb von 3 Werktagen | D74: 1
A75: 26 | B75: 11 | C75: Begleitschreiben | D75: 1
A76: 27 | B76: 12 | C76: Qualität (Schreibstil, Wortwahl, korrekte Anrede, Rechtsschreibung) | D76: 1
A77: 28 | B77: 13 | C77: Informationsgehalt (z.B. Zusatzangebote) | D77: 1
A78: 29 | B78: 14 | C78: Individuelle Bearbeitung | D78: 1
A79: 30 | B79: 15 | C79: Qualitativ entsprechende Unterlagen, Prospekte | D79: 1
C80: Anzahl der erfüllten Kriterien | D80: =SUM(D57:D79) -> 15
C81: Multiplikation der Anzahl der erfüllten Kriterien mit | D81: =D694 -> 0.2481389578
C82: Maximale Summe | D82: =D81*B79 -> 3.722084367
C83: Erreichte Punktanzahl | D83: =D81*D80 -> 3.722084367
C85: Kommentar
C88: 3. Telefon
E89: Kommentar
A90: 31 | B90: 1 | C90: Wartezeit (3*S - 1 Min; 4*S - 30 Sek; 5*/5*S - 15 Sek) | D90: 1
A91: 32 | B91: 2 | C91: Während der Wartezeit Text- bzw. Tonschleife | D91: 1
A92: 33 | B92: 3 | C92: Herzlichkeit | D92: 1
A93: 34 | B93: 4 | C93: Klare deutliche Stimme und Aussprache | D93: 1
A94: 35 | B94: 5 | C94: Mit Namen angesprochen | D94: 1
A95: 36 | B95: 6 | C95: Vollständige Datenaufnahme (z.B. Adresse, Tel, Email-Nachfrage) | D95: 1
A96: 37 | B96: 7 | C96: Fachliche Kompetenz | D96: 1
A97: 38 | B97: 8 | C97: An- und Abreisedatum wiederholt und bestätigt | D97: 1
A98: 39 | B98: 9 | C98: Informationen über Kategorien | D98: 1
A99: 40 | B99: 10 | C99: Informationen über Preise | D99: 1
A100: 41 | B100: 11 | C100: Informationen über Zahlungsmodalitäten | D100: 1
A101: 42 | B101: 12 | C101: Informationen über Leistungen | D101: 1
A102: 43 | B102: 13 | C102: Informationen über Check-in-Zeiten | D102: 1
A103: 44 | B103: 14 | C103: Informationen über Zusatzangebote | D103: 1
A104: 45 | B104: 15 | C104: Anfahrts-, Wegbeschreibung | D104: 1
A105: 46 | B105: 16 | C105: Angebot zur vorläufigen Einbuchung | D105: 1
A106: 47 | B106: 17 | C106: Hinweis auf Stornobedingungen | D106: 1
A107: 48 | B107: 18 | C107: Freundliche Verabschiedung und Dank | D107: 1
C108: Anzahl der erfüllten Kriterien | D108: =SUM(D90:D107) -> 18
C109: Multiplikation der Anzahl der erfüllten Kriterien mit | D109: =D694 -> 0.2481389578
C110: Maximale Summe | D110: =D109*B107 -> 4.466501241
C111: Erreichte Punktanzahl | D111: =D109*D108 -> 4.466501241
C113: Kommentar
C116: 4. Anreise und Außenanlage
E117: Kommentar
A118: 49 | B118: 1 | C118: Auffindbarkeit (z.B. Beschilderung im Ort) | D118: 1
A119: 50 | B119: 2 | C119: Zufahrtsmöglichkeit | D119: 1
A120: 51 | B120: 3 | C120: Parkplätze | D120: 1
A121: 52 | B121: 4 | C121: Garagenplätze | D121: 1
A122: 53 | B122: 5 | C122: Beleuchtung | D122: 1
A123: 54 | B123: 6 | C123: Gepäckservice | D123: 1
A124: 55 | B124: 7 | C124: Einfache Orientierung | D124: 1
A125: 56 | B125: 8 | C125: Sauberkeit und Zustand | D125: 1
A126: 57 | B126: 9 | C126: Parkservice (z.B. Doorman, Wagenmeiser) | D126: 1
C127: Anzahl der erfüllten Kriterien | D127: =SUM(D118:D126) -> 9
C128: Multiplikation der Anzahl der erfüllten Kriterien mit | D128: =D694 -> 0.2481389578
C129: Maximale Summe | D129: =D128*B126 -> 2.23325062
C130: Erreichte Punktanzahl | D130: =D128*D127 -> 2.23325062
C132: Kommentar
C135: 5. Check-In
C137: Eingang | E137: Kommentar
A138: 58 | B138: 1 | C138: Raumklima (Geruch) | D138: 1
A139: 59 | B139: 2 | C139: Raumtemperatur | D139: 1
A140: 60 | B140: 3 | C140: Beleuchtung ausreichend | D140: 1
A141: 61 | B141: 4 | C141: Ambiente/Atmosphäre | D141: 1
A142: 62 | B142: 5 | C142: Entsprechend qualitatives Mobiliar | D142: 1
A143: 63 | B143: 6 | C143: Sauberkeit und Ordnung | D143: 1
A144: 64 | B144: 7 | C144: Stimmige Dekorationen | D144: 1
A145: 65 | B145: 8 | C145: Großzügiger Sitzbereich für Gäste | D145: 1
A146: 66 | B146: 9 | C146: Erscheinungsbild Check-In-Bereich (Front Office - Sauberkeit, Ordnung) | D146: 1
C150: Front Office Mitarbeiter | E150: Kommentar
A151: 67 | B151: 10 | C151: Anwesenheit | D151: 1
A152: 68 | B152: 11 | C152: Begrüßung (z.B. Welcome Drink) | D152: 1
A153: 69 | B153: 12 | C153: Herzlichkeit, Freundlichkeit | D153: 1
A154: 70 | B154: 13 | C154: Erscheinungsbild Mitarbeiter (z.B. Uniform, Namensschild) | D154: 1
A155: 71 | B155: 14 | C155: Fachkompetenz | D155: 1
A156: 72 | B156: 15 | C156: Fremdsprachenkenntnisse | D156: 1
A157: 73 | B157: 16 | C157: Aufmerksamkeit | D157: 1
A158: 74 | B158: 17 | C158: Sorgfältigkeit | D158: 1
A159: 75 | B159: 18 | C159: Effizienz (Schnelligkeit, Flexibilität) | D159: 1
A160: 76 | B160: 19 | C160: Hilfsbereitschaft | D160: 1
A161: 77 | B161: 20 | C161: Klare, gut verständliche Aussprache | D161: 1
A162: 78 | B162: 21 | C162: Gast mit Namen angesprochen | D162: 1
A163: 79 | B163: 22 | C163: Vorbereiteter Meldezettel | D163: 1
A164: 80 | B164: 23 | C164: Gepäcksservice angeboten | D164: 1
A165: 81 | B165: 24 | C165: Begleitung auf das Zimmer angeboten | D165: 1
A166: 82 | B166: 25 | C166: Allgemeine Haus-Informationen angeboten bzw. gegeben | D166: 1
A167: 83 | B167: 26 | C167: Angenehmen Aufenthalt gewünscht | D167: 1
C171: Begleitung zum Zimmer | E171: Kommentar
A172: 84 | B172: 27 | C172: Erscheinungsbild des Mitarbeiters | D172: 1
A173: 85 | B173: 28 | C173: Freundlichkeit, Konversation | D173: 1
C177: Rooming | E177: Kommentar
A178: 86 | B178: 29 | C178: Hinweis auf Hauptschalter (für Strom im Zimmer) | D178: 1
A179: 87 | B179: 30 | C179: Hinweis auf Heizung oder Klimaanlage | D179: 1
A180: 88 | B180: 31 | C180: Kommunikationsgerät (z.B. Telefon) (schriftliche Infos ausreichend) | D180: 1
A181: 89 | B181: 32 | C181: Telefonverzeichnis bzw. -nummern (für Zimmerservice) - schriftliche Infos ausreichend | D181: 1
A182: 90 | B182: 33 | C182: Minibar oder Maxibar (bis 4*) (schriftliche Infos ausreichend) | D182: 1
A183: 91 | B183: 34 | C183: Safe (schriftliche Infos ausreichend) | D183: 1
A184: 92 | B184: 35 | C184: Wäsche-Service (schriftliche Infos ausreichend) | D184: 1
A185: 93 | B185: 36 | C185: Bügel-Service (schriftliche Infos ausreichend) | D185: 1
A186: 94 | B186: 37 | C186: Öffnungszeiten Restaurant, Bar (schriftliche Infos ausreichend) | D186: 1
A187: 95 | B187: 38 | C187: Zeitangabe Frühstück (schriftliche Infos ausreichend) | D187: 1
A188: 96 | B188: 39 | C188: Rezeption 24 Std. erreichbar und … Std. besetzt (3*S - 10; 4*S - 16; 5*/5*S - 24) | D188: 1
C189: Anzahl der erfüllten Kriterien | D189: =SUM(D138:D188) -> 39
C190: Multiplikation der Anzahl der erfüllten Kriterien mit | D190: =D694 -> 0.2481389578
C191: Maximale Summe | D191: =D190*B188 -> 9.677419355
C192: Erreichte Punktanzahl | D192: =D190*D189 -> 9.677419355
C194: Kommentar
C197: 6. Zimmer
C199: Erster Eindruck und Allgemeiner Charakter | E199: Kommentar
A200: 97 | B200: 1 | C200: Raumklima (Frischer Geruch) | D200: 1
A201: 98 | B201: 2 | C201: Angenehme Temperatur | D201: 1
A202: 99 | B202: 3 | C202: Atmosphäre (Wohlfühlcharakter) | D202: 1
A203: 100 | B203: 4 | C203: Geräuschpegel (Ruhe) | D203: 1
A204: 101 | B204: 5 | C204: Entsprechendes Mobiliar | D204: 1
A205: 102 | B205: 6 | C205: Sauberkeit | D205: 1
A206: 103 | B206: 7 | C206: Willkommensbrief/-karte | D206: 1
A207: 104 | B207: 8 | C207: Willkommensgruß (z.B. Blumen, Obst, Konfekt…) | D207: 1
A208: 105 | B208: 9 | C208: Türschloss in einwandfreiem Zustand | D208: 1
C212: Das Bett | E212: Kommentar
A213: 106 | B213: 10 | C213: Dem Hotelstandard angemessen | D213: 1
A214: 107 | B214: 11 | C214: Qualität der Bettbezüge angemessen | D214: 1
A215: 108 | B215: 12 | C215: Matratze/Liegekomfort | D215: 1
A216: 109 | B216: 13 | C216: Bettdecken der Jahreszeit angepasst | D216: 1
A217: 110 | B217: 14 | C217: Zusatzkopfkissen auf Wunsch (kein Zierkissen) | D217: 1
A218: 111 | B218: 15 | C218: Zusatzdecke auf Wunsch | D218: 1
A219: 112 | B219: 16 | C219: Zwei Kopfkissen pro Gast (kein Zierkissen) | D219: 1
A220: 113 | B220: 17 | C220: Auswahl verschiedener Kopfkissen | D220: 1
A221: 114 | B221: 18 | C221: Allergikerfreundliche Bettwäsche und Einlagen auf Wunsch | D221: 1
C222: Einrichtung | E222: Kommentar
A223: 115 | B223: 19 | C223: Qualität und Zustand der Vorhänge | D223: 1
A224: 116 | B224: 20 | C224: Verdunkelung mit Vorhängen möglich | D224: 1
A225: 117 | B225: 21 | C225: Schalter, Steckdosen leicht erreichbar | D225: 1
A226: 118 | B226: 22 | C226: Einwandfreie Wände | D226: 1
A227: 119 | B227: 23 | C227: Einwandfreie Beleuchtung | D227: 1
A228: 120 | B228: 24 | C228: Einwandfreie Einrichtung (Mobiliar) | D228: 1
A229: 121 | B229: 25 | C229: Angemessene Anzahl einheitlicher Kleiderbügel (kein Draht) bis inkl. 3*; verschiedene Bügelarten 4*, 5*; | D229: 1
A230: 122 | B230: 26 | C230: Geräumige Ablagemöglichkeiten | D230: 1
A231: 123 | B231: 27 | C231: Geräumige Hängevorrichtung in den Kästen | D231: 1
C235: Ausstattung und Services | E235: Kommentar
A236: 124 | B236: 28 | C236: funktionstüchtige Audio- / Multimedia Unterhaltung (z.B. Radio, Streaming-Dienste) | D236: 1
A237: 125 | B237: 29 | C237: TV-Programme gut eingestellt | D237: 1
A238: 126 | B238: 30 | C238: Schreibmappe mit Schreibgeräten | D238: 1
A239: 127 | B239: 31 | C239: Kommunikationsgerät mit interner und externer Telefonfunktion | D239: 1
A240: 128 | B240: 32 | C240: Bedienungsanleitung für das Kommunikationsgerät (ab 4* zweisprachig verpflichtend) | D240: 1
A241: 129 | B241: 33 | C241: Schreibblock und einen Bleistift neben Telefon | D241: 1
A242: 130 | B242: 34 | C242: WLAN Internetzugang im öffentlichen Bereich und auf den Zimmern | D242: 1
A243: 131 | B243: 35 | C243: Private und sichere Druckmöglichkeit auf Wunsch (ab 4* verpflichtend) | D243: 1
A244: 132 | B244: 36 | C244: Internet-Endgerät auf dem Zimmer auf Wunsch (ab 5* verpflichtend) | D244: 1
A245: 133 | B245: 37 | C245: Einwandfreie Funktionalität aller elektrischen Einrichtungen (z.B. Licht, TV, Fön) | D245: 1
A246: 134 | B246: 38 | C246: Safe im Zimmer (ab 4* verpflichtend) | D246: 1
A247: 135 | B247: 39 | C247: Weckservice (oder Weckfunktion über das TV-Gerät, Telefon) | D247: 1
A248: 136 | B248: 40 | C248: Alternatives Weckservice (Verlässlichkeit, Freundlichkeit) | D248: 1
A249: 137 | B249: 41 | C249: "Bitte nicht stören/Bitte aufräumen" Angabemöglichkeit vorhanden | D249: 1
A250: 138 | B250: 42 | C250: Aktualität des Infomaterials (gedruckt oder digital) | D250: 1
A251: 139 | B251: 43 | C251: Sicherheitsbestimmungen (z.B. Brandschutz, Fluchtwege) sichtbar | D251: 1
A252: 140 | B252: 44 | C252: Zimmerpreise aufgehängt oder in Infomappe | D252: 1
A253: 141 | B253: 45 | C253: Aktuelles Medienangebot (gedruckt oder digital) | D253: 1
A254: 142 | B254: 46 | C254: Zweisprachiger Serviceleitfaden (gedruckt oder digital) | D254: 1
A255: 143 | B255: 47 | C255: Ladegeräte/Adapter auf Wunsch (z.B. für elektr. Geräte wie Handys, Tabletts...) ab 3* verpflichtend | D255: 1
A256: 144 | B256: 48 | C256: Internationaler Steckdosenadapter auf Wunsch (ab 4* verpflichtend) | D256: 1
A257: 145 | B257: 49 | C257: Mindestens zwei Trinkgläser auf Untersetzer (z.B. Serviette) | D257: 1
A258: 146 | B258: 50 | C258: Getränke im Roomservice (4* - 16h; 5* - 24h) | D258: 1
A259: 147 | B259: 51 | C259: Speisen im Roomservice (4* - 16h; 5* - 24h) | D259: 1
A260: 148 | B260: 52 | C260: Frühstückskarte im Roomservice | D260: 1
A261: 149 | B261: 53 | C261: Wäschereiservice | D261: 1
... 355 more rows

Sheet Freizeit
C7: Fachverband Hotellerie
C11: Fragenkatalog für Mystery Guest-Check
C18: Arbeitsunterlage 2020-2025
C24: Dies ist die Auflistung der erforderlichen Prüfkriterien für Firmen, die einen Mystery-Test im Rahmen der Österreichischen Hotelklassifizierung durchführen. Über die Listung einer Firma entscheidet die Lenkungskommission bzw. der Fachverband Hotellerie nach Prüfung der Voraussetzungen.
C26: positiv erfülltes Kriterium | D26: 1
C27: negativ erfülltes Kriterium | D27: 0
C30: 1. Web-Auftritt
E31: Kommentar
A32: 1 | B32: 1 | C32: Nachvollziehbare Webadresse | D32: 1
A33: 2 | B33: 2 | C33: Funktionieren alle Links | D33: 1
A34: 3 | B34: 3 | C34: Übersichtlichkeit | D34: 1
A35: 4 | B35: 4 | C35: Such-Funktion | D35: 1
A36: 5 | B36: 5 | C36: Integriertes Gästefeedback | D36: 1
A37: 6 | B37: 6 | C37: Tipp-, Rechtschreib- und Grammatikfehler | D37: 1
A38: 7 | B38: 7 | C38: Aussagekräftiger, realistischer Auftritt mit Hotelbildern | D38: 1
A39: 8 | B39: 8 | C39: Aktualität | D39: 1
A40: 9 | B40: 9 | C40: Impressum | D40: 1
A41: 10 | B41: 10 | C41: Übersetzung in mindestens eine Fremdsprache (ab 3* verpflichtend) | D41: 1
A42: 11 | B42: 11 | C42: Kontaktangabe (Email, Telefon, etc.) | D42: 1
A43: 12 | B43: 12 | C43: Online-Buchbarkeit auf eigener Website | D43: 1
A44: 13 | B44: 13 | C44: Anfahrtsplan | D44: 1
A45: 14 | B45: 14 | C45: Allgemeinen Geschäftsbedingungen oder Stornobedingungen vorhanden | D45: 1
A46: 15 | B46: 15 | C46: Mobile Version der Website oder mobile Applikation | D46: 1
C47: Anzahl der erfüllten Kriterien | D47: =SUM(D32:D46) -> 15
C48: Multiplikation der Anzahl der erfüllten Kriterien mit | D48: =D694 -> 0.2487562189
C49: Maximale Summe | D49: =D48*B46 -> 3.731343284
C50: Erreichte Punktanzahl | D50: =D47*D48 -> 3.731343284
C52: Kommentar
C54: 2. E-Mail und Post
C56: Beantwortung Ihrer E-Mail Anfrage, | E56: Kommentar
A57: 16 | B57: 1 | C57: Innerhalb … Stunden ab Anfrage (3*S - 12; 4*S - 8; 5*/5*S - 4) | D57: 1
A58: 17 | B58: 2 | C58: Qualität (Schreibstil, Wortwahl, korrekte Anrede, Rechtsschreibung) | D58: 1
A59: 18 | B59: 3 | C59: Informationsgehalt (z.B. Zusatzangebote) | D59: 1
A60: 19 | B60: 4 | C60: Individuelle Bearbeitung | D60: 1
A61: 20 | B61: 5 | C61: Bei Angebot: Angaben zu Stornobedingungen | D61: 1
C65: Reservierungs-Bestätigung (E-Mail, Fax) als Antwort auf Ihre Buchung | E65: Kommentar
A66: 21 | B66: 6 | C66: Innerhalb … Stunden ab Reservierung (3*S - 24; 4*S - 12; 5*/5*S - 8) | D66: 1
A67: 22 | B67: 7 | C67: Qualität (Schreibstil, Wortwahl, korrekte Anrede, Rechtsschreibung) | D67: 1
A68: 23 | B68: 8 | C68: Informationsgehalt (u.a. Aktuelle Anfahrtsbeschreibung) | D68: 1
A69: 24 | B69: 9 | C69: Angaben zu Stornobedingungen | D69: 1
C73: Unterlagen per Post | E73: Kommentar
A74: 25 | B74: 10 | C74: Zusendung innerhalb von 3 Werktagen | D74: 1
A75: 26 | B75: 11 | C75: Begleitschreiben | D75: 1
A76: 27 | B76: 12 | C76: Qualität (Schreibstil, Wortwahl, korrekte Anrede, Rechtsschreibung) | D76: 1
A77: 28 | B77: 13 | C77: Informationsgehalt (z.B. Zusatzangebote) | D77: 1
A78: 29 | B78: 14 | C78: Individuelle Bearbeitung | D78: 1
A79: 30 | B79: 15 | C79: Qualitativ entsprechende Unterlagen, Prospekte | D79: 1
C80: Anzahl der erfüllten Kriterien | D80: =SUM(D57:D79) -> 15
C81: Multiplikation der Anzahl der erfüllten Kriterien mit | D81: =D694 -> 0.2487562189
C82: Maximale Summe | D82: =D81*B79 -> 3.731343284
C83: Erreichte Punktanzahl | D83: =D81*D80 -> 3.731343284
C85: Kommentar
C88: 3. Telefon
E89: Kommentar
A90: 31 | B90: 1 | C90: Wartezeit (3*S - 1 Min; 4*S - 30 Sek; 5*/5*S - 15 Sek) | D90: 1
A91: 32 | B91: 2 | C91: Während der Wartezeit Text- bzw. Tonschleife | D91: 1
A92: 33 | B92: 3 | C92: Herzlichkeit | D92: 1
A93: 34 | B93: 4 | C93: Klare deutliche Stimme und Aussprache | D93: 1
A94: 35 | B94: 5 | C94: Mit Namen angesprochen | D94: 1
A95: 36 | B95: 6 | C95: Vollständige Datenaufnahme (z.B. Adresse, Tel, Email-Nachfrage) | D95: 1
A96: 37 | B96: 7 | C96: Fachliche Kompetenz | D96: 1
A97: 38 | B97: 8 | C97: An- und Abreisedatum wiederholt und bestätigt | D97: 1
A98: 39 | B98: 9 | C98: Informationen über Kategorien | D98: 1
A99: 40 | B99: 10 | C99: Informationen über Preise | D99: 1
A100: 41 | B100: 11 | C100: Informationen über Zahlungsmodalitäten | D100: 1
A101: 42 | B101: 12 | C101: Informationen über Leistungen | D101: 1
A102: 43 | B102: 13 | C102: Informationen über Check-in-Zeiten | D102: 1
A103: 44 | B103: 14 | C103: Informationen über Zusatzangebote | D103: 1
A104: 45 | B104: 15 | C104: Anfahrts-, Wegbeschreibung | D104: 1
A105: 46 | B105: 16 | C105: Angebot zur vorläufigen Einbuchung | D105: 1
A106: 47 | B106: 17 | C106: Hinweis auf Stornobedingungen | D106: 1
A107: 48 | B107: 18 | C107: Freundliche Verabschiedung und Dank | D107: 1
C108: Anzahl der erfüllten Kriterien | D108: =SUM(D90:D107) -> 18
C109: Multiplikation der Anzahl der erfüllten Kriterien mit | D109: =D694 -> 0.2487562189
C110: Maximale Summe | D110: =D109*B107 -> 4.47761194
C111: Erreichte Punktanzahl | D111: =D109*D108 -> 4.47761194
C113: Kommentar
C116: 4. Anreise und Außenanlage
E117: Kommentar
A118: 49 | B118: 1 | C118: Auffindbarkeit (z.B. Beschilderung im Ort) | D118: 1
A119: 50 | B119: 2 | C119: Zufahrtsmöglichkeit | D119: 1
A120: 51 | B120: 3 | C120: Parkplätze | D120: 1
A121: 52 | B121: 4 | C121: Garagenplätze | D121: 1
A122: 53 | B122: 5 | C122: Beleuchtung | D122: 1
A123: 54 | B123: 6 | C123: Gepäckservice | D123: 1
A124: 55 | B124: 7 | C124: Einfache Orientierung | D124: 1
A125: 56 | B125: 8 | C125: Sauberkeit und Zustand | D125: 1
A126: 57 | B126: 9 | C126: Parkservice (z.B. Doorman, Wagenmeiser) | D126: 1
C127: Anzahl der erfüllten Kriterien | D127: =SUM(D118:D126) -> 9
C128: Multiplikation der Anzahl der erfüllten Kriterien mit | D128: =D694 -> 0.2487562189
C129: Maximale Summe | D129: =D128*B126 -> 2.23880597
C130: Erreichte Punktanzahl | D130: =D128*D127 -> 2.23880597
C132: Kommentar
C135: 5. Check-In
C137: Eingang | E137: Kommentar
A138: 58 | B138: 1 | C138: Raumklima (Geruch) | D138: 1
A139: 59 | B139: 2 | C139: Raumtemperatur | D139: 1
A140: 60 | B140: 3 | C140: Beleuchtung ausreichend | D140: 1
A141: 61 | B141: 4 | C141: Ambiente/Atmosphäre | D141: 1
A142: 62 | B142: 5 | C142: Entsprechend qualitatives Mobiliar | D142: 1
A143: 63 | B143: 6 | C143: Sauberkeit und Ordnung | D143: 1
A144: 64 | B144: 7 | C144: Stimmige Dekorationen | D144: 1
A145: 65 | B145: 8 | C145: Großzügiger Sitzbereich für Gäste | D145: 1
A146: 66 | B146: 9 | C146: Erscheinungsbild Check-In-Bereich (Front Office - Sauberkeit, Ordnung) | D146: 1
C150: Front Office Mitarbeiter | E150: Kommentar
A151: 67 | B151: 10 | C151: Anwesenheit | D151: 1
A152: 68 | B152: 11 | C152: Begrüßung (z.B. Welcome Drink) | D152: 1
A153: 69 | B153: 12 | C153: Herzlichkeit, Freundlichkeit | D153: 1
A154: 70 | B154: 13 | C154: Erscheinungsbild Mitarbeiter (z.B. Uniform, Namensschild) | D154: 1
A155: 71 | B155: 14 | C155: Fachkompetenz | D155: 1
A156: 72 | B156: 15 | C156: Fremdsprachenkenntnisse | D156: 1
A157: 73 | B157: 16 | C157: Aufmerksamkeit | D157: 1
A158: 74 | B158: 17 | C158: Sorgfältigkeit | D158: 1
A159: 75 | B159: 18 | C159: Effizienz (Schnelligkeit, Flexibilität) | D159: 1
A160: 76 | B160: 19 | C160: Hilfsbereitschaft | D160: 1
A161: 77 | B161: 20 | C161: Klare, gut verständliche Aussprache | D161: 1
A162: 78 | B162: 21 | C162: Gast mit Namen angesprochen | D162: 1
A163: 79 | B163: 22 | C163: Vorbereiteter Meldezettel | D163: 1
A164: 80 | B164: 23 | C164: Gepäcksservice angeboten | D164: 1
A165: 81 | B165: 24 | C165: Begleitung auf das Zimmer angeboten | D165: 1
A166: 82 | B166: 25 | C166: Allgemeine Haus-Informationen angeboten bzw. gegeben | D166: 1
A167: 83 | B167: 26 | C167: Angenehmen Aufenthalt gewünscht | D167: 1
C171: Begleitung zum Zimmer | E171: Kommentar
A172: 84 | B172: 27 | C172: Erscheinungsbild des Mitarbeiters | D172: 1
A173: 85 | B173: 28 | C173: Freundlichkeit, Konversation | D173: 1
C177: Rooming | E177: Kommentar
A178: 86 | B178: 29 | C178: Hinweis auf Hauptschalter (für Strom im Zimmer) | D178: 1
A179: 87 | B179: 30 | C179: Hinweis auf Heizung oder Klimaanlage | D179: 1
A180: 88 | B180: 31 | C180: Kommunikationsgerät (z.B. Telefon) (schriftliche Infos ausreichend) | D180: 1
A181: 89 | B181: 32 | C181: Telefonverzeichnis bzw. -nummern (für Zimmerservice) - schriftliche Infos ausreichend | D181: 1
A182: 90 | B182: 33 | C182: Minibar oder Maxibar (bis 4*) (schriftliche Infos ausreichend) | D182: 1
A183: 91 | B183: 34 | C183: Safe (schriftliche Infos ausreichend) | D183: 1
A184: 92 | B184: 35 | C184: Wäsche-Service (schriftliche Infos ausreichend) | D184: 1
A185: 93 | B185: 36 | C185: Bügel-Service (schriftliche Infos ausreichend) | D185: 1
A186: 94 | B186: 37 | C186: Öffnungszeiten Restaurant, Bar (schriftliche Infos ausreichend) | D186: 1
A187: 95 | B187: 38 | C187: Zeitangabe Frühstück (schriftliche Infos ausreichend) | D187: 1
A188: 96 | B188: 39 | C188: Rezeption 24 Std. erreichbar und … Std. besetzt (3*S - 10; 4*S - 16; 5*/5*S - 24) | D188: 1
C189: Anzahl der erfüllten Kriterien | D189: =SUM(D138:D188) -> 39
C190: Multiplikation der Anzahl der erfüllten Kriterien mit | D190: =D694 -> 0.2487562189
C191: Maximale Summe | D191: =D190*B188 -> 9.701492537
C192: Erreichte Punktanzahl | D192: =D190*D189 -> 9.701492537
C194: Kommentar
C197: 6. Zimmer
C199: Erster Eindruck und Allgemeiner Charakter | E199: Kommentar
A200: 97 | B200: 1 | C200: Raumklima (Frischer Geruch) | D200: 1
A201: 98 | B201: 2 | C201: Angenehme Temperatur | D201: 1
A202: 99 | B202: 3 | C202: Atmosphäre (Wohlfühlcharakter) | D202: 1
A203: 100 | B203: 4 | C203: Geräuschpegel (Ruhe) | D203: 1
A204: 101 | B204: 5 | C204: Entsprechendes Mobiliar | D204: 1
A205: 102 | B205: 6 | C205: Sauberkeit | D205: 1
A206: 103 | B206: 7 | C206: Willkommensbrief/-karte | D206: 1
A207: 104 | B207: 8 | C207: Willkommensgruß (z.B. Blumen, Obst, Konfekt…) | D207: 1
A208: 105 | B208: 9 | C208: Türschloss in einwandfreiem Zustand | D208: 1
C212: Das Bett | E212: Kommentar
A213: 106 | B213: 10 | C213: Dem Hotelstandard angemessen | D213: 1
A214: 107 | B214: 11 | C214: Qualität der Bettbezüge angemessen | D214: 1
A215: 108 | B215: 12 | C215: Matratze/Liegekomfort | D215: 1
A216: 109 | B216: 13 | C216: Bettdecken der Jahreszeit angepasst | D216: 1
A217: 110 | B217: 14 | C217: Zusatzkopfkissen auf Wunsch (kein Zierkissen) | D217: 1
A218: 111 | B218: 15 | C218: Zusatzdecke auf Wunsch | D218: 1
A219: 112 | B219: 16 | C219: Zwei Kopfkissen pro Gast (kein Zierkissen) | D219: 1
A220: 113 | B220: 17 | C220: Auswahl verschiedener Kopfkissen | D220: 1
A221: 114 | B221: 18 | C221: Allergikerfreundliche Bettwäsche und Einlagen auf Wunsch | D221: 1
C222: Einrichtung | E222: Kommentar
A223: 115 | B223: 19 | C223: Qualität und Zustand der Vorhänge | D223: 1
A224: 116 | B224: 20 | C224: Verdunkelung mit Vorhängen möglich | D224: 1
A225: 117 | B225: 21 | C225: Schalter, Steckdosen leicht erreichbar | D225: 1
A226: 118 | B226: 22 | C226: Einwandfreie Wände | D226: 1
A227: 119 | B227: 23 | C227: Einwandfreie Beleuchtung | D227: 1
A228: 120 | B228: 24 | C228: Einwandfreie Einrichtung (Mobiliar) | D228: 1
A229: 121 | B229: 25 | C229: Angemessene Anzahl einheitlicher Kleiderbügel (kein Draht) bis inkl. 3*; verschiedene Bügelarten 4*, 5*; | D229: 1
A230: 122 | B230: 26 | C230: Geräumige Ablagemöglichkeiten | D230: 1
A231: 123 | B231: 27 | C231: Geräumige Hängevorrichtung in den Kästen | D231: 1
C235: Ausstattung und Services | E235: Kommentar
A236: 124 | B236: 28 | C236: funktionstüchtige Audio- / Multimedia Unterhaltung (z.B. Radio, Streaming-Dienste) | D236: 1
A237: 125 | B237: 29 | C237: TV-Programme gut eingestellt | D237: 1
A238: 126 | B238: 30 | C238: Schreibmappe mit Schreibgeräten | D238: 1
A239: 127 | B239: 31 | C239: Kommunikationsgerät mit interner und externer Telefonfunktion | D239: 1
A240: 128 | B240: 32 | C240: Bedienungsanleitung für das Kommunikationsgerät (ab 4* zweisprachig verpflichtend) | D240: 1
A241: 129 | B241: 33 | C241: Schreibblock und einen Bleistift neben Telefon | D241: 1
A242: 130 | B242: 34 | C242: WLAN Internetzugang im öffentlichen Bereich und auf den Zimmern | D242: 1
A243: 131 | B243: 35 | C243: Private und sichere Druckmöglichkeit auf Wunsch (ab 4* verpflichtend) | D243: 1
A244: 132 | B244: 36 | C244: Internet-Endgerät auf dem Zimmer auf Wunsch (ab 5* verpflichtend) | D244: 1
A245: 133 | B245: 37 | C245: Einwandfreie Funktionalität aller elektrischen Einrichtungen (z.B. Licht, TV, Fön) | D245: 1
A246: 134 | B246: 38 | C246: Safe im Zimmer (ab 4* verpflichtend) | D246: 1
A247: 135 | B247: 39 | C247: Weckservice (oder Weckfunktion über das TV-Gerät, Telefon) | D247: 1
A248: 136 | B248: 40 | C248: Alternatives Weckservice (Verlässlichkeit, Freundlichkeit) | D248: 1
A249: 137 | B249: 41 | C249: "Bitte nicht stören/Bitte aufräumen" Angabemöglichkeit vorhanden | D249: 1
A250: 138 | B250: 42 | C250: Aktualität des Infomaterials (gedruckt oder digital) | D250: 1
A251: 139 | B251: 43 | C251: Sicherheitsbestimmungen (z.B. Brandschutz, Fluchtwege) sichtbar | D251: 1
A252: 140 | B252: 44 | C252: Zimmerpreise aufgehängt oder in Infomappe | D252: 1
A253: 141 | B253: 45 | C253: Aktuelles Medienangebot (gedruckt oder digital) | D253: 1
A254: 142 | B254: 46 | C254: Zweisprachiger Serviceleitfaden (gedruckt oder digital) | D254: 1
A255: 143 | B255: 47 | C255: Ladegeräte/Adapter auf Wunsch (z.B. für elektr. Geräte wie Handys, Tabletts...) ab 3* verpflichtend | D255: 1
A256: 144 | B256: 48 | C256: Internationaler Steckdosenadapter auf Wunsch (ab 4* verpflichtend) | D256: 1
A257: 145 | B257: 49 | C257: Mindestens zwei Trinkgläser auf Untersetzer (z.B. Serviette) | D257: 1
A258: 146 | B258: 50 | C258: Getränke im Roomservice (4* - 16h; 5* - 24h) | D258: 1
A259: 147 | B259: 51 | C259: Speisen im Roomservice (4* - 16h; 5* - 24h) | D259: 1
A260: 148 | B260: 52 | C260: Frühstückskarte im Roomservice | D260: 1
A261: 149 | B261: 53 | C261: Wäschereiservice | D261: 1
... 354 more rows

Sheet Tagung
C7: Fachverband Hotellerie
C11: Fragenkatalog für Mystery Guest-Check
C18: Arbeitsunterlage 2020-2025
C24: Dies ist die Auflistung der erforderlichen Prüfkriterien für Firmen, die einen Mystery-Test im Rahmen der Österreichischen Hotelklassifizierung durchführen. Über die Listung einer Firma entscheidet die Lenkungskommission bzw. der Fachverband Hotellerie nach Prüfung der Voraussetzungen.
C26: positiv erfülltes Kriterium | D26: 1
C27: negativ erfülltes Kriterium | D27: 0
C30: 1. Web-Auftritt
E31: Kommentar
A32: 1 | B32: 1 | C32: Nachvollziehbare Webadresse | D32: 1
A33: 2 | B33: 2 | C33: Funktionieren alle Links | D33: 1
A34: 3 | B34: 3 | C34: Übersichtlichkeit | D34: 1
A35: 4 | B35: 4 | C35: Such-Funktion | D35: 1
A36: 5 | B36: 5 | C36: Integriertes Gästefeedback | D36: 1
A37: 6 | B37: 6 | C37: Tipp-, Rechtschreib- und Grammatikfehler | D37: 1
A38: 7 | B38: 7 | C38: Aussagekräftiger, realistischer Auftritt mit Hotelbildern | D38: 1
A39: 8 | B39: 8 | C39: Aktualität | D39: 1
A40: 9 | B40: 9 | C40: Impressum | D40: 1
A41: 10 | B41: 10 | C41: Übersetzung in mindestens eine Fremdsprache (ab 3* verpflichtend) | D41: 1
A42: 11 | B42: 11 | C42: Kontaktangabe (Email, Telefon, etc.) | D42: 1
A43: 12 | B43: 12 | C43: Online-Buchbarkeit auf eigener Website | D43: 1
A44: 13 | B44: 13 | C44: Anfahrtsplan | D44: 1
A45: 14 | B45: 14 | C45: Allgemeinen Geschäftsbedingungen oder Stornobedingungen vorhanden | D45: 1
A46: 15 | B46: 15 | C46: Mobile Version der Website oder mobile Applikation | D46: 1
C47: Anzahl der erfüllten Kriterien | D47: =SUM(D32:D46) -> 15
C48: Multiplikation der Anzahl der erfüllten Kriterien mit | D48: =D692 -> 0.2487562189
C49: Maximale Summe | D49: =D48*B46 -> 3.731343284
C50: Erreichte Punktanzahl | D50: =D47*D48 -> 3.731343284
C52: Kommentar
C54: 2. E-Mail und Post
C56: Beantwortung Ihrer E-Mail Anfrage, | E56: Kommentar
A57: 16 | B57: 1 | C57: Innerhalb … Stunden ab Anfrage (3*S - 12; 4*S - 8; 5*/5*S - 4) | D57: 1
A58: 17 | B58: 2 | C58: Qualität (Schreibstil, Wortwahl, korrekte Anrede, Rechtsschreibung) | D58: 1
A59: 18 | B59: 3 | C59: Informationsgehalt (z.B. Zusatzangebote) | D59: 1
A60: 19 | B60: 4 | C60: Individuelle Bearbeitung | D60: 1
A61: 20 | B61: 5 | C61: Bei Angebot: Angaben zu Stornobedingungen | D61: 1
C65: Reservierungs-Bestätigung (E-Mail, Fax) als Antwort auf Ihre Buchung | E65: Kommentar
A66: 21 | B66: 6 | C66: Innerhalb … Stunden ab Reservierung (3*S - 24; 4*S - 12; 5*/5*S - 8) | D66: 1
A67: 22 | B67: 7 | C67: Qualität (Schreibstil, Wortwahl, korrekte Anrede, Rechtsschreibung) | D67: 1
A68: 23 | B68: 8 | C68: Informationsgehalt (u.a. Aktuelle Anfahrtsbeschreibung) | D68: 1
A69: 24 | B69: 9 | C69: Angaben zu Stornobedingungen | D69: 1
C73: Unterlagen per Post | E73: Kommentar
A74: 25 | B74: 10 | C74: Zusendung innerhalb von 3 Werktagen | D74: 1
A75: 26 | B75: 11 | C75: Begleitschreiben | D75: 1
A76: 27 | B76: 12 | C76: Qualität (Schreibstil, Wortwahl, korrekte Anrede, Rechtsschreibung) | D76: 1
A77: 28 | B77: 13 | C77: Informationsgehalt (z.B. Zusatzangebote) | D77: 1
A78: 29 | B78: 14 | C78: Individuelle Bearbeitung | D78: 1
A79: 30 | B79: 15 | C79: Qualitativ entsprechende Unterlagen, Prospekte | D79: 1
C80: Anzahl der erfüllten Kriterien | D80: =SUM(D57:D79) -> 15
C81: Multiplikation der Anzahl der erfüllten Kriterien mit | D81: =D692 -> 0.2487562189
C82: Maximale Summe | D82: =D81*B79 -> 3.731343284
C83: Erreichte Punktanzahl | D83: =D81*D80 -> 3.731343284
C85: Kommentar
C88: 3. Telefon
E89: Kommentar
A90: 31 | B90: 1 | C90: Wartezeit (3*S - 1 Min; 4*S - 30 Sek; 5*/5*S - 15 Sek) | D90: 1
A91: 32 | B91: 2 | C91: Während der Wartezeit Text- bzw. Tonschleife | D91: 1
A92: 33 | B92: 3 | C92: Herzlichkeit | D92: 1
A93: 34 | B93: 4 | C93: Klare deutliche Stimme und Aussprache | D93: 1
A94: 35 | B94: 5 | C94: Mit Namen angesprochen | D94: 1
A95: 36 | B95: 6 | C95: Vollständige Datenaufnahme (z.B. Adresse, Tel, Email-Nachfrage) | D95: 1
A96: 37 | B96: 7 | C96: Fachliche Kompetenz | D96: 1
A97: 38 | B97: 8 | C97: An- und Abreisedatum wiederholt und bestätigt | D97: 1
A98: 39 | B98: 9 | C98: Informationen über Kategorien | D98: 1
A99: 40 | B99: 10 | C99: Informationen über Preise | D99: 1
A100: 41 | B100: 11 | C100: Informationen über Zahlungsmodalitäten | D100: 1
A101: 42 | B101: 12 | C101: Informationen über Leistungen | D101: 1
A102: 43 | B102: 13 | C102: Informationen über Check-in-Zeiten | D102: 1
A103: 44 | B103: 14 | C103: Informationen über Zusatzangebote | D103: 1
A104: 45 | B104: 15 | C104: Anfahrts-, Wegbeschreibung | D104: 1
A105: 46 | B105: 16 | C105: Angebot zur vorläufigen Einbuchung | D105: 1
A106: 47 | B106: 17 | C106: Hinweis auf Stornobedingungen | D106: 1
A107: 48 | B107: 18 | C107: Freundliche Verabschiedung und Dank | D107: 1
C108: Anzahl der erfüllten Kriterien | D108: =SUM(D90:D107) -> 18
C109: Multiplikation der Anzahl der erfüllten Kriterien mit | D109: =D692 -> 0.2487562189
C110: Maximale Summe | D110: =D109*B107 -> 4.47761194
C111: Erreichte Punktanzahl | D111: =D109*D108 -> 4.47761194
C113: Kommentar
C116: 4. Anreise und Außenanlage
E117: Kommentar
A118: 49 | B118: 1 | C118: Auffindbarkeit (z.B. Beschilderung im Ort) | D118: 1
A119: 50 | B119: 2 | C119: Zufahrtsmöglichkeit | D119: 1
A120: 51 | B120: 3 | C120: Parkplätze | D120: 1
A121: 52 | B121: 4 | C121: Garagenplätze | D121: 1
A122: 53 | B122: 5 | C122: Beleuchtung | D122: 1
A123: 54 | B123: 6 | C123: Gepäckservice | D123: 1
A124: 55 | B124: 7 | C124: Einfache Orientierung | D124: 1
A125: 56 | B125: 8 | C125: Sauberkeit und Zustand | D125: 1
A126: 57 | B126: 9 | C126: Parkservice (z.B. Doorman, Wagenmeiser) | D126: 1
C127: Anzahl der erfüllten Kriterien | D127: =SUM(D118:D126) -> 9
C128: Multiplikation der Anzahl der erfüllten Kriterien mit | D128: =D692 -> 0.2487562189
C129: Maximale Summe | D129: =D128*B126 -> 2.23880597
C130: Erreichte Punktanzahl | D130: =D128*D127 -> 2.23880597
C132: Kommentar
C135: 5. Check-In
C137: Eingang | E137: Kommentar
A138: 58 | B138: 1 | C138: Raumklima (Geruch) | D138: 1
A139: 59 | B139: 2 | C139: Raumtemperatur | D139: 1
A140: 60 | B140: 3 | C140: Beleuchtung ausreichend | D140: 1
A141: 61 | B141: 4 | C141: Ambiente/Atmosphäre | D141: 1
A142: 62 | B142: 5 | C142: Entsprechend qualitatives Mobiliar | D142: 1
A143: 63 | B143: 6 | C143: Sauberkeit und Ordnung | D143: 1
A144: 64 | B144: 7 | C144: Stimmige Dekorationen | D144: 1
A145: 65 | B145: 8 | C145: Großzügiger Sitzbereich für Gäste | D145: 1
A146: 66 | B146: 9 | C146: Erscheinungsbild Check-In-Bereich (Front Office - Sauberkeit, Ordnung) | D146: 1
C150: Front Office Mitarbeiter | E150: Kommentar
A151: 67 | B151: 10 | C151: Anwesenheit | D151: 1
A152: 68 | B152: 11 | C152: Begrüßung (z.B. Welcome Drink) | D152: 1
A153: 69 | B153: 12 | C153: Herzlichkeit, Freundlichkeit | D153: 1
A154: 70 | B154: 13 | C154: Erscheinungsbild Mitarbeiter (z.B. Uniform, Namensschild) | D154: 1
A155: 71 | B155: 14 | C155: Fachkompetenz | D155: 1
A156: 72 | B156: 15 | C156: Fremdsprachenkenntnisse | D156: 1
A157: 73 | B157: 16 | C157: Aufmerksamkeit | D157: 1
A158: 74 | B158: 17 | C158: Sorgfältigkeit | D158: 1
A159: 75 | B159: 18 | C159: Effizienz (Schnelligkeit, Flexibilität) | D159: 1
A160: 76 | B160: 19 | C160: Hilfsbereitschaft | D160: 1
A161: 77 | B161: 20 | C161: Klare, gut verständliche Aussprache | D161: 1
A162: 78 | B162: 21 | C162: Gast mit Namen angesprochen | D162: 1
A163: 79 | B163: 22 | C163: Vorbereiteter Meldezettel | D163: 1
A164: 80 | B164: 23 | C164: Gepäcksservice angeboten | D164: 1
A165: 81 | B165: 24 | C165: Begleitung auf das Zimmer angeboten | D165: 1
A166: 82 | B166: 25 | C166: Allgemeine Haus-Informationen angeboten bzw. gegeben | D166: 1
A167: 83 | B167: 26 | C167: Angenehmen Aufenthalt gewünscht | D167: 1
C171: Begleitung zum Zimmer | E171: Kommentar
A172: 84 | B172: 27 | C172: Erscheinungsbild des Mitarbeiters | D172: 1
A173: 85 | B173: 28 | C173: Freundlichkeit, Konversation | D173: 1
C177: Rooming | E177: Kommentar
A178: 86 | B178: 29 | C178: Hinweis auf Hauptschalter (für Strom im Zimmer) | D178: 1
A179: 87 | B179: 30 | C179: Hinweis auf Heizung oder Klimaanlage | D179: 1
A180: 88 | B180: 31 | C180: Kommunikationsgerät (z.B. Telefon) (schriftliche Infos ausreichend) | D180: 1
A181: 89 | B181: 32 | C181: Telefonverzeichnis bzw. -nummern (für Zimmerservice) - schriftliche Infos ausreichend | D181: 1
A182: 90 | B182: 33 | C182: Minibar oder Maxibar (bis 4*) (schriftliche Infos ausreichend) | D182: 1
A183: 91 | B183: 34 | C183: Safe (schriftliche Infos ausreichend) | D183: 1
A184: 92 | B184: 35 | C184: Wäsche-Service (schriftliche Infos ausreichend) | D184: 1
A185: 93 | B185: 36 | C185: Bügel-Service (schriftliche Infos ausreichend) | D185: 1
A186: 94 | B186: 37 | C186: Öffnungszeiten Restaurant, Bar (schriftliche Infos ausreichend) | D186: 1
A187: 95 | B187: 38 | C187: Zeitangabe Frühstück (schriftliche Infos ausreichend) | D187: 1
A188: 96 | B188: 39 | C188: Rezeption 24 Std. erreichbar und … Std. besetzt (3*S - 10; 4*S - 16; 5*/5*S - 24) | D188: 1
C189: Anzahl der erfüllten Kriterien | D189: =SUM(D138:D188) -> 39
C190: Multiplikation der Anzahl der erfüllten Kriterien mit | D190: =D692 -> 0.2487562189
C191: Maximale Summe | D191: =D190*B188 -> 9.701492537
C192: Erreichte Punktanzahl | D192: =D190*D189 -> 9.701492537
C194: Kommentar
C197: 6. Zimmer
C199: Erster Eindruck und Allgemeiner Charakter | E199: Kommentar
A200: 97 | B200: 1 | C200: Raumklima (Frischer Geruch) | D200: 1
A201: 98 | B201: 2 | C201: Angenehme Temperatur | D201: 1
A202: 99 | B202: 3 | C202: Atmosphäre (Wohlfühlcharakter) | D202: 1
A203: 100 | B203: 4 | C203: Geräuschpegel (Ruhe) | D203: 1
A204: 101 | B204: 5 | C204: Entsprechendes Mobiliar | D204: 1
A205: 102 | B205: 6 | C205: Sauberkeit | D205: 1
A206: 103 | B206: 7 | C206: Willkommensbrief/-karte | D206: 1
A207: 104 | B207: 8 | C207: Willkommensgruß (z.B. Blumen, Obst, Konfekt…) | D207: 1
A208: 105 | B208: 9 | C208: Türschloss in einwandfreiem Zustand | D208: 1
C212: Das Bett | E212: Kommentar
A213: 106 | B213: 10 | C213: Dem Hotelstandard angemessen | D213: 1
A214: 107 | B214: 11 | C214: Qualität der Bettbezüge angemessen | D214: 1
A215: 108 | B215: 12 | C215: Matratze/Liegekomfort | D215: 1
A216: 109 | B216: 13 | C216: Bettdecken der Jahreszeit angepasst | D216: 1
A217: 110 | B217: 14 | C217: Zusatzkopfkissen auf Wunsch (kein Zierkissen) | D217: 1
A218: 111 | B218: 15 | C218: Zusatzdecke auf Wunsch | D218: 1
A219: 112 | B219: 16 | C219: Zwei Kopfkissen pro Gast (kein Zierkissen) | D219: 1
A220: 113 | B220: 17 | C220: Auswahl verschiedener Kopfkissen | D220: 1
A221: 114 | B221: 18 | C221: Allergikerfreundliche Bettwäsche und Einlagen auf Wunsch | D221: 1
C222: Einrichtung | E222: Kommentar
A223: 115 | B223: 19 | C223: Qualität und Zustand der Vorhänge | D223: 1
A224: 116 | B224: 20 | C224: Verdunkelung mit Vorhängen möglich | D224: 1
A225: 117 | B225: 21 | C225: Schalter, Steckdosen leicht erreichbar | D225: 1
A226: 118 | B226: 22 | C226: Einwandfreie Wände | D226: 1
A227: 119 | B227: 23 | C227: Einwandfreie Beleuchtung | D227: 1
A228: 120 | B228: 24 | C228: Einwandfreie Einrichtung (Mobiliar) | D228: 1
A229: 121 | B229: 25 | C229: Angemessene Anzahl einheitlicher Kleiderbügel (kein Draht) bis inkl. 3*; verschiedene Bügelarten 4*, 5*; | D229: 1
A230: 122 | B230: 26 | C230: Geräumige Ablagemöglichkeiten | D230: 1
A231: 123 | B231: 27 | C231: Geräumige Hängevorrichtung in den Kästen | D231: 1
C235: Ausstattung und Services | E235: Kommentar
A236: 124 | B236: 28 | C236: funktionstüchtige Audio- / Multimedia Unterhaltung (z.B. Radio, Streaming-Dienste) | D236: 1
A237: 125 | B237: 29 | C237: TV-Programme gut eingestellt | D237: 1
A238: 126 | B238: 30 | C238: Schreibmappe mit Schreibgeräten | D238: 1
A239: 127 | B239: 31 | C239: Kommunikationsgerät mit interner und externer Telefonfunktion | D239: 1
A240: 128 | B240: 32 | C240: Bedienungsanleitung für das Kommunikationsgerät (ab 4* zweisprachig verpflichtend) | D240: 1
A241: 129 | B241: 33 | C241: Schreibblock und einen Bleistift neben Telefon | D241: 1
A242: 130 | B242: 34 | C242: WLAN Internetzugang im öffentlichen Bereich und auf den Zimmern | D242: 1
A243: 131 | B243: 35 | C243: Private und sichere Druckmöglichkeit auf Wunsch (ab 4* verpflichtend) | D243: 1
A244: 132 | B244: 36 | C244: Internet-Endgerät auf dem Zimmer auf Wunsch (ab 5* verpflichtend) | D244: 1
A245: 133 | B245: 37 | C245: Einwandfreie Funktionalität aller elektrischen Einrichtungen (z.B. Licht, TV, Fön) | D245: 1
A246: 134 | B246: 38 | C246: Safe im Zimmer (ab 4* verpflichtend) | D246: 1
A247: 135 | B247: 39 | C247: Weckservice (oder Weckfunktion über das TV-Gerät, Telefon) | D247: 1
A248: 136 | B248: 40 | C248: Alternatives Weckservice (Verlässlichkeit, Freundlichkeit) | D248: 1
A249: 137 | B249: 41 | C249: "Bitte nicht stören/Bitte aufräumen" Angabemöglichkeit vorhanden | D249: 1
A250: 138 | B250: 42 | C250: Aktualität des Infomaterials (gedruckt oder digital) | D250: 1
A251: 139 | B251: 43 | C251: Sicherheitsbestimmungen (z.B. Brandschutz, Fluchtwege) sichtbar | D251: 1
A252: 140 | B252: 44 | C252: Zimmerpreise aufgehängt oder in Infomappe | D252: 1
A253: 141 | B253: 45 | C253: Aktuelles Medienangebot (gedruckt oder digital) | D253: 1
A254: 142 | B254: 46 | C254: Zweisprachiger Serviceleitfaden (gedruckt oder digital) | D254: 1
A255: 143 | B255: 47 | C255: Ladegeräte/Adapter auf Wunsch (z.B. für elektr. Geräte wie Handys, Tabletts...) ab 3* verpflichtend | D255: 1
A256: 144 | B256: 48 | C256: Internationaler Steckdosenadapter auf Wunsch (ab 4* verpflichtend) | D256: 1
A257: 145 | B257: 49 | C257: Mindestens zwei Trinkgläser auf Untersetzer (z.B. Serviette) | D257: 1
A258: 146 | B258: 50 | C258: Getränke im Roomservice (4* - 16h; 5* - 24h) | D258: 1
A259: 147 | B259: 51 | C259: Speisen im Roomservice (4* - 16h; 5* - 24h) | D259: 1
A260: 148 | B260: 52 | C260: Frühstückskarte im Roomservice | D260: 1
A261: 149 | B261: 53 | C261: Wäschereiservice | D261: 1
... 354 more rows

Sheet ohne Zusatz
C7: Fachverband Hotellerie
C11: Fragenkatalog für Mystery Guest-Check
C18: Arbeitsunterlage 2020-2025
C24: Dies ist die Auflistung der erforderlichen Prüfkriterien für Firmen, die einen Mystery-Test im Rahmen der Österreichischen Hotelklassifizierung durchführen. Über die Listung einer Firma entscheidet die Lenkungskommission bzw. der Fachverband Hotellerie nach Prüfung der Voraussetzungen.
C26: positiv erfülltes Kriterium | D26: 1
C27: negativ erfülltes Kriterium | D27: 0
C30: 1. Web-Auftritt
E31: Kommentar
A32: 1 | B32: 1 | C32: Nachvollziehbare Webadresse | D32: 1
A33: 2 | B33: 2 | C33: Funktionieren alle Links | D33: 1
A34: 3 | B34: 3 | C34: Übersichtlichkeit | D34: 1
A35: 4 | B35: 4 | C35: Such-Funktion | D35: 1
A36: 5 | B36: 5 | C36: Integriertes Gästefeedback | D36: 1
A37: 6 | B37: 6 | C37: Tipp-, Rechtschreib- und Grammatikfehler | D37: 1
A38: 7 | B38: 7 | C38: Aussagekräftiger, realistischer Auftritt mit Hotelbildern | D38: 1
A39: 8 | B39: 8 | C39: Aktualität | D39: 1
A40: 9 | B40: 9 | C40: Impressum | D40: 1
A41: 10 | B41: 10 | C41: Übersetzung in mindestens eine Fremdsprache (ab 3* verpflichtend) | D41: 1
A42: 11 | B42: 11 | C42: Kontaktangabe (Email, Telefon, etc.) | D42: 1
A43: 12 | B43: 12 | C43: Online-Buchbarkeit auf eigener Website | D43: 1
A44: 13 | B44: 13 | C44: Anfahrtsplan | D44: 1
A45: 14 | B45: 14 | C45: Allgemeinen Geschäftsbedingungen oder Stornobedingungen vorhanden | D45: 1
A46: 15 | B46: 15 | C46: Mobile Version der Website oder mobile Applikation | D46: 1
C47: Anzahl der erfüllten Kriterien | D47: =SUM(D32:D46) -> 15
C48: Multiplikation der Anzahl der erfüllten Kriterien mit | D48: =D656 -> 0.2638522427
C49: Maximale Summe | D49: =D48*B46 -> 3.957783641
C50: Erreichte Punktanzahl | D50: =D47*D48 -> 3.957783641
C52: Kommentar
C54: 2. E-Mail und Post
C56: Beantwortung Ihrer E-Mail Anfrage, | E56: Kommentar
A57: 16 | B57: 1 | C57: Innerhalb … Stunden ab Anfrage (3*S - 12; 4*S - 8; 5*/5*S - 4) | D57: 1
A58: 17 | B58: 2 | C58: Qualität (Schreibstil, Wortwahl, korrekte Anrede, Rechtsschreibung) | D58: 1
A59: 18 | B59: 3 | C59: Informationsgehalt (z.B. Zusatzangebote) | D59: 1
A60: 19 | B60: 4 | C60: Individuelle Bearbeitung | D60: 1
A61: 20 | B61: 5 | C61: Bei Angebot: Angaben zu Stornobedingungen | D61: 1
C65: Reservierungs-Bestätigung (E-Mail, Fax) als Antwort auf Ihre Buchung | E65: Kommentar
A66: 21 | B66: 6 | C66: Innerhalb … Stunden ab Reservierung (3*S - 24; 4*S - 12; 5*/5*S - 8) | D66: 1
A67: 22 | B67: 7 | C67: Qualität (Schreibstil, Wortwahl, korrekte Anrede, Rechtsschreibung) | D67: 1
A68: 23 | B68: 8 | C68: Informationsgehalt (u.a. Aktuelle Anfahrtsbeschreibung) | D68: 1
A69: 24 | B69: 9 | C69: Angaben zu Stornobedingungen | D69: 1
C73: Unterlagen per Post | E73: Kommentar
A74: 25 | B74: 10 | C74: Zusendung innerhalb von 3 Werktagen | D74: 1
A75: 26 | B75: 11 | C75: Begleitschreiben | D75: 1
A76: 27 | B76: 12 | C76: Qualität (Schreibstil, Wortwahl, korrekte Anrede, Rechtsschreibung) | D76: 1
A77: 28 | B77: 13 | C77: Informationsgehalt (z.B. Zusatzangebote) | D77: 1
A78: 29 | B78: 14 | C78: Individuelle Bearbeitung | D78: 1
A79: 30 | B79: 15 | C79: Qualitativ entsprechende Unterlagen, Prospekte | D79: 1
C80: Anzahl der erfüllten Kriterien | D80: =SUM(D57:D79) -> 15
C81: Multiplikation der Anzahl der erfüllten Kriterien mit | D81: =D656 -> 0.2638522427
C82: Maximale Summe | D82: =D81*B79 -> 3.957783641
C83: Erreichte Punktanzahl | D83: =D81*D80 -> 3.957783641
C85: Kommentar
C88: 3. Telefon
E89: Kommentar
A90: 31 | B90: 1 | C90: Wartezeit (3*S - 1 Min; 4*S - 30 Sek; 5*/5*S - 15 Sek) | D90: 1
A91: 32 | B91: 2 | C91: Während der Wartezeit Text- bzw. Tonschleife | D91: 1
A92: 33 | B92: 3 | C92: Herzlichkeit | D92: 1
A93: 34 | B93: 4 | C93: Klare deutliche Stimme und Aussprache | D93: 1
A94: 35 | B94: 5 | C94: Mit Namen angesprochen | D94: 1
A95: 36 | B95: 6 | C95: Vollständige Datenaufnahme (z.B. Adresse, Tel, Email-Nachfrage) | D95: 1
A96: 37 | B96: 7 | C96: Fachliche Kompetenz | D96: 1
A97: 38 | B97: 8 | C97: An- und Abreisedatum wiederholt und bestätigt | D97: 1
A98: 39 | B98: 9 | C98: Informationen über Kategorien | D98: 1
A99: 40 | B99: 10 | C99: Informationen über Preise | D99: 1
A100: 41 | B100: 11 | C100: Informationen über Zahlungsmodalitäten | D100: 1
A101: 42 | B101: 12 | C101: Informationen über Leistungen | D101: 1
A102: 43 | B102: 13 | C102: Informationen über Check-in-Zeiten | D102: 1
A103: 44 | B103: 14 | C103: Informationen über Zusatzangebote | D103: 1
A104: 45 | B104: 15 | C104: Anfahrts-, Wegbeschreibung | D104: 1
A105: 46 | B105: 16 | C105: Angebot zur vorläufigen Einbuchung | D105: 1
A106: 47 | B106: 17 | C106: Hinweis auf Stornobedingungen | D106: 1
A107: 48 | B107: 18 | C107: Freundliche Verabschiedung und Dank | D107: 1
C108: Anzahl der erfüllten Kriterien | D108: =SUM(D90:D107) -> 18
C109: Multiplikation der Anzahl der erfüllten Kriterien mit | D109: =D656 -> 0.2638522427
C110: Maximale Summe | D110: =D109*B107 -> 4.749340369
C111: Erreichte Punktanzahl | D111: =D109*D108 -> 4.749340369
C113: Kommentar
C116: 4. Anreise und Außenanlage
E117: Kommentar
A118: 49 | B118: 1 | C118: Auffindbarkeit (z.B. Beschilderung im Ort) | D118: 1
A119: 50 | B119: 2 | C119: Zufahrtsmöglichkeit | D119: 1
A120: 51 | B120: 3 | C120: Parkplätze | D120: 1
A121: 52 | B121: 4 | C121: Garagenplätze | D121: 1
A122: 53 | B122: 5 | C122: Beleuchtung | D122: 1
A123: 54 | B123: 6 | C123: Gepäckservice | D123: 1
A124: 55 | B124: 7 | C124: Einfache Orientierung | D124: 1
A125: 56 | B125: 8 | C125: Sauberkeit und Zustand | D125: 1
A126: 57 | B126: 9 | C126: Parkservice (z.B. Doorman, Wagenmeiser) | D126: 1
C127: Anzahl der erfüllten Kriterien | D127: =SUM(D118:D126) -> 9
C128: Multiplikation der Anzahl der erfüllten Kriterien mit | D128: =D656 -> 0.2638522427
C129: Maximale Summe | D129: =D128*B126 -> 2.374670185
C130: Erreichte Punktanzahl | D130: =D128*D127 -> 2.374670185
C132: Kommentar
C135: 5. Check-In
C137: Eingang | E137: Kommentar
A138: 58 | B138: 1 | C138: Raumklima (Geruch) | D138: 1
A139: 59 | B139: 2 | C139: Raumtemperatur | D139: 1
A140: 60 | B140: 3 | C140: Beleuchtung ausreichend | D140: 1
A141: 61 | B141: 4 | C141: Ambiente/Atmosphäre | D141: 1
A142: 62 | B142: 5 | C142: Entsprechend qualitatives Mobiliar | D142: 1
A143: 63 | B143: 6 | C143: Sauberkeit und Ordnung | D143: 1
A144: 64 | B144: 7 | C144: Stimmige Dekorationen | D144: 1
A145: 65 | B145: 8 | C145: Großzügiger Sitzbereich für Gäste | D145: 1
A146: 66 | B146: 9 | C146: Erscheinungsbild Check-In-Bereich (Front Office - Sauberkeit, Ordnung) | D146: 1
C150: Front Office Mitarbeiter | E150: Kommentar
A151: 67 | B151: 10 | C151: Anwesenheit | D151: 1
A152: 68 | B152: 11 | C152: Begrüßung (z.B. Welcome Drink) | D152: 1
A153: 69 | B153: 12 | C153: Herzlichkeit, Freundlichkeit | D153: 1
A154: 70 | B154: 13 | C154: Erscheinungsbild Mitarbeiter (z.B. Uniform, Namensschild) | D154: 1
A155: 71 | B155: 14 | C155: Fachkompetenz | D155: 1
A156: 72 | B156: 15 | C156: Fremdsprachenkenntnisse | D156: 1
A157: 73 | B157: 16 | C157: Aufmerksamkeit | D157: 1
A158: 74 | B158: 17 | C158: Sorgfältigkeit | D158: 1
A159: 75 | B159: 18 | C159: Effizienz (Schnelligkeit, Flexibilität) | D159: 1
A160: 76 | B160: 19 | C160: Hilfsbereitschaft | D160: 1
A161: 77 | B161: 20 | C161: Klare, gut verständliche Aussprache | D161: 1
A162: 78 | B162: 21 | C162: Gast mit Namen angesprochen | D162: 1
A163: 79 | B163: 22 | C163: Vorbereiteter Meldezettel | D163: 1
A164: 80 | B164: 23 | C164: Gepäcksservice angeboten | D164: 1
A165: 81 | B165: 24 | C165: Begleitung auf das Zimmer angeboten | D165: 1
A166: 82 | B166: 25 | C166: Allgemeine Haus-Informationen angeboten bzw. gegeben | D166: 1
A167: 83 | B167: 26 | C167: Angenehmen Aufenthalt gewünscht | D167: 1
C171: Begleitung zum Zimmer | E171: Kommentar
A172: 84 | B172: 27 | C172: Erscheinungsbild des Mitarbeiters | D172: 1
A173: 85 | B173: 28 | C173: Freundlichkeit, Konversation | D173: 1
C177: Rooming | E177: Kommentar
A178: 86 | B178: 29 | C178: Hinweis auf Hauptschalter (für Strom im Zimmer) | D178: 1
A179: 87 | B179: 30 | C179: Hinweis auf Heizung oder Klimaanlage | D179: 1
A180: 88 | B180: 31 | C180: Kommunikationsgerät (z.B. Telefon) (schriftliche Infos ausreichend) | D180: 1
A181: 89 | B181: 32 | C181: Telefonverzeichnis bzw. -nummern (für Zimmerservice) - schriftliche Infos ausreichend | D181: 1
A182: 90 | B182: 33 | C182: Minibar oder Maxibar (bis 4*) (schriftliche Infos ausreichend) | D182: 1
A183: 91 | B183: 34 | C183: Safe (schriftliche Infos ausreichend) | D183: 1
A184: 92 | B184: 35 | C184: Wäsche-Service (schriftliche Infos ausreichend) | D184: 1
A185: 93 | B185: 36 | C185: Bügel-Service (schriftliche Infos ausreichend) | D185: 1
A186: 94 | B186: 37 | C186: Öffnungszeiten Restaurant, Bar (schriftliche Infos ausreichend) | D186: 1
A187: 95 | B187: 38 | C187: Zeitangabe Frühstück (schriftliche Infos ausreichend) | D187: 1
A188: 96 | B188: 39 | C188: Rezeption 24 Std. erreichbar und … Std. besetzt (3*S - 10; 4*S - 16; 5*/5*S - 24) | D188: 1
C189: Anzahl der erfüllten Kriterien | D189: =SUM(D138:D188) -> 39
C190: Multiplikation der Anzahl der erfüllten Kriterien mit | D190: =D656 -> 0.2638522427
C191: Maximale Summe | D191: =D190*B188 -> 10.29023747
C192: Erreichte Punktanzahl | D192: =D190*D189 -> 10.29023747
C194: Kommentar
C197: 6. Zimmer
C199: Erster Eindruck und Allgemeiner Charakter | E199: Kommentar
A200: 97 | B200: 1 | C200: Raumklima (Frischer Geruch) | D200: 1
A201: 98 | B201: 2 | C201: Angenehme Temperatur | D201: 1
A202: 99 | B202: 3 | C202: Atmosphäre (Wohlfühlcharakter) | D202: 1
A203: 100 | B203: 4 | C203: Geräuschpegel (Ruhe) | D203: 1
A204: 101 | B204: 5 | C204: Entsprechendes Mobiliar | D204: 1
A205: 102 | B205: 6 | C205: Sauberkeit | D205: 1
A206: 103 | B206: 7 | C206: Willkommensbrief/-karte | D206: 1
A207: 104 | B207: 8 | C207: Willkommensgruß (z.B. Blumen, Obst, Konfekt…) | D207: 1
A208: 105 | B208: 9 | C208: Türschloss in einwandfreiem Zustand | D208: 1
C212: Das Bett | E212: Kommentar
A213: 106 | B213: 10 | C213: Dem Hotelstandard angemessen | D213: 1
A214: 107 | B214: 11 | C214: Qualität der Bettbezüge angemessen | D214: 1
A215: 108 | B215: 12 | C215: Matratze/Liegekomfort | D215: 1
A216: 109 | B216: 13 | C216: Bettdecken der Jahreszeit angepasst | D216: 1
A217: 110 | B217: 14 | C217: Zusatzkopfkissen auf Wunsch (kein Zierkissen) | D217: 1
A218: 111 | B218: 15 | C218: Zusatzdecke auf Wunsch | D218: 1
A219: 112 | B219: 16 | C219: Zwei Kopfkissen pro Gast (kein Zierkissen) | D219: 1
A220: 113 | B220: 17 | C220: Auswahl verschiedener Kopfkissen | D220: 1
A221: 114 | B221: 18 | C221: Allergikerfreundliche Bettwäsche und Einlagen auf Wunsch | D221: 1
C222: Einrichtung | E222: Kommentar
A223: 115 | B223: 19 | C223: Qualität und Zustand der Vorhänge | D223: 1
A224: 116 | B224: 20 | C224: Verdunkelung mit Vorhängen möglich | D224: 1
A225: 117 | B225: 21 | C225: Schalter, Steckdosen leicht erreichbar | D225: 1
A226: 118 | B226: 22 | C226: Einwandfreie Wände | D226: 1
A227: 119 | B227: 23 | C227: Einwandfreie Beleuchtung | D227: 1
A228: 120 | B228: 24 | C228: Einwandfreie Einrichtung (Mobiliar) | D228: 1
A229: 121 | B229: 25 | C229: Angemessene Anzahl einheitlicher Kleiderbügel (kein Draht) bis inkl. 3*; verschiedene Bügelarten 4*, 5*; | D229: 1
A230: 122 | B230: 26 | C230: Geräumige Ablagemöglichkeiten | D230: 1
A231: 123 | B231: 27 | C231: Geräumige Hängevorrichtung in den Kästen | D231: 1
C235: Ausstattung und Services | E235: Kommentar
A236: 124 | B236: 28 | C236: funktionstüchtige Audio- / Multimedia Unterhaltung (z.B. Radio, Streaming-Dienste) | D236: 1
A237: 125 | B237: 29 | C237: TV-Programme gut eingestellt | D237: 1
A238: 126 | B238: 30 | C238: Schreibmappe mit Schreibgeräten | D238: 1
A239: 127 | B239: 31 | C239: Kommunikationsgerät mit interner und externer Telefonfunktion | D239: 1
A240: 128 | B240: 32 | C240: Bedienungsanleitung für das Kommunikationsgerät (ab 4* zweisprachig verpflichtend) | D240: 1
A241: 129 | B241: 33 | C241: Schreibblock und einen Bleistift neben Telefon | D241: 1
A242: 130 | B242: 34 | C242: WLAN Internetzugang im öffentlichen Bereich und auf den Zimmern | D242: 1
A243: 131 | B243: 35 | C243: Private und sichere Druckmöglichkeit auf Wunsch (ab 4* verpflichtend) | D243: 1
A244: 132 | B244: 36 | C244: Internet-Endgerät auf dem Zimmer auf Wunsch (ab 5* verpflichtend) | D244: 1
A245: 133 | B245: 37 | C245: Einwandfreie Funktionalität aller elektrischen Einrichtungen (z.B. Licht, TV, Fön) | D245: 1
A246: 134 | B246: 38 | C246: Safe im Zimmer (ab 4* verpflichtend) | D246: 1
A247: 135 | B247: 39 | C247: Weckservice (oder Weckfunktion über das TV-Gerät, Telefon) | D247: 1
A248: 136 | B248: 40 | C248: Alternatives Weckservice (Verlässlichkeit, Freundlichkeit) | D248: 1
A249: 137 | B249: 41 | C249: "Bitte nicht stören/Bitte aufräumen" Angabemöglichkeit vorhanden | D249: 1
A250: 138 | B250: 42 | C250: Aktualität des Infomaterials (gedruckt oder digital) | D250: 1
A251: 139 | B251: 43 | C251: Sicherheitsbestimmungen (z.B. Brandschutz, Fluchtwege) sichtbar | D251: 1
A252: 140 | B252: 44 | C252: Zimmerpreise aufgehängt oder in Infomappe | D252: 1
A253: 141 | B253: 45 | C253: Aktuelles Medienangebot (gedruckt oder digital) | D253: 1
A254: 142 | B254: 46 | C254: Zweisprachiger Serviceleitfaden (gedruckt oder digital) | D254: 1
A255: 143 | B255: 47 | C255: Ladegeräte/Adapter auf Wunsch (z.B. für elektr. Geräte wie Handys, Tabletts...) ab 3* verpflichtend | D255: 1
A256: 144 | B256: 48 | C256: Internationaler Steckdosenadapter auf Wunsch (ab 4* verpflichtend) | D256: 1
A257: 145 | B257: 49 | C257: Mindestens zwei Trinkgläser auf Untersetzer (z.B. Serviette) | D257: 1
A258: 146 | B258: 50 | C258: Getränke im Roomservice (4* - 16h; 5* - 24h) | D258: 1
A259: 147 | B259: 51 | C259: Speisen im Roomservice (4* - 16h; 5* - 24h) | D259: 1
A260: 148 | B260: 52 | C260: Frühstückskarte im Roomservice | D260: 1
A261: 149 | B261: 53 | C261: Wäschereiservice | D261: 1
... 323 more rows
